Workbook

Sheet Total
A1: POTENTIAL WIND STATION 391 ARCEN
A2: MOST RECENT COORDINATES X : 211100; Y : 390150
A3: MEASURED AT 10.0 METER HEIGHT
A5: POTENTIAL WIND MEANS: CORRECTED TO THE WIND SPEED AT 10 M HEIGHT OVER
A6: OPEN LAND WITH ROUGHNESS LENGTH 0.03 METER
A8: CONSULT THE REPORTS AT THE SITE: http://www.knmi.nl/samenw/hydra
A9: FOR BACKGROUND INFORMATION
A10: THESE DATA CAN BE USED FREELY PROVIDED THAT THE FOLLOWING SOURCE IS ACKNOWLEDGED:
A11: ROYAL NETHERLANDS METEOROLOGICAL INSTITUTE
A12: KONINKLIJK NEDERLANDS METEOROLOGISCH INSTITUUT | J12: Name | K12: =book_name() -> Arcen.xlsm
A14: VERSION FEBRUARY 01 | B14: 2007
J15: Shear Factor | L15: =1/7 -> 0.1428571429
A16: TIME IN GMT
A17: DD = WIND DIRECTION IN DEGREES NORTH
A18: QQD = QUALITY CODE DD
A19: UP = POTENTIAL WIND SPEED IN 0.1 M/S
R21: =K12 -> Ljmuiden.xlsm | S21: Average | T21: =AVERAGE(T27:T47) -> 4.962635902 | U21: Std Dev | V21: =_xlfn.STDEV.S(T27:T47) -> 0.3436408136 | W21: Ratio | X21: =V21/T21 -> 0.06924562276
A24: QUP = QUALITY CODE UP | L24: Hub
K25: Measure | L25: Height | P25: Wind Speed
A26: DATE | B26: TIME | C26: DD | D26: QDD | E26: UP | F26: QUP | G26: Year | H26: Month | I26: Day | J26: M/sec | K26: Height | L26: 80 | M26: Shear | N26: Adjusted | P26: At 80 m | Q26: Eomonth | T26: Average
A27: 19900704 | B27: 1 | C27: 0 | D27: 0 | E27: 6 | F27: 0 | G27: =VALUE(LEFT(A27,4)) -> 1990 | H27: =VALUE(MID(A27,5,2)) -> 7 | I27: =VALUE(RIGHT(A27,2)) -> 4 | J27: =IF(E27>0,E27/10,FALSE) -> 0.6 | K27: 10 | L27: =L26 -> 80 | M27: =(L27/K27)^$L$15 -> 1.345900193 | N27: =IF(J27,J27*M27) -> 0.8075401156 | O27: =DATE(G27,H27,I27) -> 1990-07-04 | P27: =N27 -> 0.8075401156 | Q27: =EOMONTH(O27,0) -> 1990-07-31 | S27: 2001 | T27: =AVERAGEIF(G:G,S27,P:P) -> 5.158528479
A28: 19900704 | B28: 2 | C28: 190 | D28: 0 | E28: 11 | F28: 0 | G28: =VALUE(LEFT(A28,4)) -> 1990 | H28: =VALUE(MID(A28,5,2)) -> 7 | I28: =VALUE(RIGHT(A28,2)) -> 4 | J28: =IF(E28>0,E28/10,FALSE) -> 1.1 | K28: 10 | L28: =L27 -> 80 | M28: =(L28/K28)^$L$15 -> 1.345900193 | N28: =IF(J28,J28*M28) -> 1.480490212 | O28: =DATE(G28,H28,I28) -> 1990-07-04 | P28: =N28 -> 1.480490212 | Q28: =EOMONTH(O28,0) -> 1990-07-31 | S28: 2002 | T28: 5.325264783
A29: 19900704 | B29: 3 | C29: 160 | D29: 0 | E29: 11 | F29: 0 | G29: 1990 | H29: 7 | I29: 4 | J29: 1.1 | K29: 10 | L29: 80 | M29: 1.345900193 | N29: 1.480490212 | O29: 1990-07-04 | P29: 1.480490212 | Q29: 1990-07-31 | S29: 2003 | T29: 4.833131093
A30: 19900704 | B30: 4 | C30: 170 | D30: 0 | E30: 11 | F30: 0 | G30: 1990 | H30: 7 | I30: 4 | J30: 1.1 | K30: 10 | L30: 80 | M30: 1.345900193 | N30: 1.480490212 | O30: 1990-07-04 | P30: 1.480490212 | Q30: 1990-07-31 | S30: 2004 | T30: 5.162067275
A31: 19900704 | B31: 5 | C31: 160 | D31: 0 | E31: 17 | F31: 0 | G31: 1990 | H31: 7 | I31: 4 | J31: 1.7 | K31: 10 | L31: 80 | M31: 1.345900193 | N31: 2.288030327 | O31: 1990-07-04 | P31: 2.288030327 | Q31: 1990-07-31 | S31: 2005 | T31: 4.985810024
A32: 19900704 | B32: 6 | C32: 180 | D32: 0 | E32: 23 | F32: 0 | G32: 1990 | H32: 7 | I32: 4 | J32: 2.3 | K32: 10 | L32: 80 | M32: 1.345900193 | N32: 3.095570443 | O32: 1990-07-04 | P32: 3.095570443 | Q32: 1990-07-31 | S32: 2006 | T32: 5.095222715
A33: 19900704 | B33: 7 | C33: 190 | D33: 0 | E33: 30 | F33: 0 | G33: 1990 | H33: 7 | I33: 4 | J33: 3 | K33: 10 | L33: 80 | M33: 1.345900193 | N33: 4.037700578 | O33: 1990-07-04 | P33: 4.037700578 | Q33: 1990-07-31 | S33: 2007 | T33: 5.175160982
A34: 19900704 | B34: 8 | C34: 200 | D34: 0 | E34: 35 | F34: 0 | G34: 1990 | H34: 7 | I34: 4 | J34: 3.5 | K34: 10 | L34: 80 | M34: 1.345900193 | N34: 4.710650674 | O34: 1990-07-04 | P34: 4.710650674 | Q34: 1990-07-31 | S34: 2008 | T34: 4.91202761
A35: 19900704 | B35: 9 | C35: 190 | D35: 0 | E35: 47 | F35: 0 | G35: 1990 | H35: 7 | I35: 4 | J35: 4.7 | K35: 10 | L35: 80 | M35: 1.345900193 | N35: 6.325730905 | O35: 1990-07-04 | P35: 6.325730905 | Q35: 1990-07-31 | S35: 2009 | T35: 4.392009319
A36: 19900704 | B36: 10 | C36: 190 | D36: 0 | E36: 52 | F36: 0 | G36: 1990 | H36: 7 | I36: 4 | J36: 5.2 | K36: 10 | L36: 80 | M36: 1.345900193 | N36: 6.998681002 | O36: 1990-07-04 | P36: 6.998681002 | Q36: 1990-07-31 | S36: 2010 | T36: 4.278643845
A37: 19900704 | B37: 11 | C37: 200 | D37: 0 | E37: 52 | F37: 0 | G37: 1990 | H37: 7 | I37: 4 | J37: 5.2 | K37: 10 | L37: 80 | M37: 1.345900193 | N37: 6.998681002 | O37: 1990-07-04 | P37: 6.998681002 | Q37: 1990-07-31 | S37: 2011 | T37: 5.271128803
A38: 19900704 | B38: 12 | C38: 190 | D38: 0 | E38: 52 | F38: 0 | G38: 1990 | H38: 7 | I38: 4 | J38: 5.2 | K38: 10 | L38: 80 | M38: 1.345900193 | N38: 6.998681002 | O38: 1990-07-04 | P38: 6.998681002 | Q38: 1990-07-31
A39: 19900704 | B39: 13 | C39: 190 | D39: 0 | E39: 58 | F39: 0 | G39: 1990 | H39: 7 | I39: 4 | J39: 5.8 | K39: 10 | L39: 80 | M39: 1.345900193 | N39: 7.806221117 | O39: 1990-07-04 | P39: 7.806221117 | Q39: 1990-07-31
A40: 19900704 | B40: 14 | C40: 210 | D40: 0 | E40: 57 | F40: 0 | G40: 1990 | H40: 7 | I40: 4 | J40: 5.7 | K40: 10 | L40: 80 | M40: 1.345900193 | N40: 7.671631098 | O40: 1990-07-04 | P40: 7.671631098 | Q40: 1990-07-31
A41: 19900704 | B41: 15 | C41: 210 | D41: 0 | E41: 46 | F41: 0 | G41: 1990 | H41: 7 | I41: 4 | J41: 4.6 | K41: 10 | L41: 80 | M41: 1.345900193 | N41: 6.191140886 | O41: 1990-07-04 | P41: 6.191140886 | Q41: 1990-07-31
A42: 19900704 | B42: 16 | C42: 200 | D42: 0 | E42: 58 | F42: 0 | G42: 1990 | H42: 7 | I42: 4 | J42: 5.8 | K42: 10 | L42: 80 | M42: 1.345900193 | N42: 7.806221117 | O42: 1990-07-04 | P42: 7.806221117 | Q42: 1990-07-31
A43: 19900704 | B43: 17 | C43: 200 | D43: 0 | E43: 65 | F43: 0 | G43: 1990 | H43: 7 | I43: 4 | J43: 6.5 | K43: 10 | L43: 80 | M43: 1.345900193 | N43: 8.748351252 | O43: 1990-07-04 | P43: 8.748351252 | Q43: 1990-07-31
A44: 19900704 | B44: 18 | C44: 190 | D44: 0 | E44: 52 | F44: 0 | G44: 1990 | H44: 7 | I44: 4 | J44: 5.2 | K44: 10 | L44: 80 | M44: 1.345900193 | N44: 6.998681002 | O44: 1990-07-04 | P44: 6.998681002 | Q44: 1990-07-31
A45: 19900704 | B45: 19 | C45: 190 | D45: 0 | E45: 58 | F45: 0 | G45: 1990 | H45: 7 | I45: 4 | J45: 5.8 | K45: 10 | L45: 80 | M45: 1.345900193 | N45: 7.806221117 | O45: 1990-07-04 | P45: 7.806221117 | Q45: 1990-07-31
A46: 19900704 | B46: 20 | C46: 180 | D46: 0 | E46: 51 | F46: 0 | G46: 1990 | H46: 7 | I46: 4 | J46: 5.1 | K46: 10 | L46: 80 | M46: 1.345900193 | N46: 6.864090982 | O46: 1990-07-04 | P46: 6.864090982 | Q46: 1990-07-31
A47: 19900704 | B47: 21 | C47: 200 | D47: 0 | E47: 52 | F47: 0 | G47: 1990 | H47: 7 | I47: 4 | J47: 5.2 | K47: 10 | L47: 80 | M47: 1.345900193 | N47: 6.998681002 | O47: 1990-07-04 | P47: 6.998681002 | Q47: 1990-07-31
A48: 19900704 | B48: 22 | C48: 210 | D48: 0 | E48: 81 | F48: 0 | G48: 1990 | H48: 7 | I48: 4 | J48: 8.1 | K48: 10 | L48: 80 | M48: 1.345900193 | N48: 10.90179156 | O48: 1990-07-04 | P48: 10.90179156 | Q48: 1990-07-31
A49: 19900704 | B49: 23 | C49: 210 | D49: 0 | E49: 70 | F49: 0 | G49: 1990 | H49: 7 | I49: 4 | J49: 7 | K49: 10 | L49: 80 | M49: 1.345900193 | N49: 9.421301348 | O49: 1990-07-04 | P49: 9.421301348 | Q49: 1990-07-31
A50: 19900704 | B50: 24 | C50: 200 | D50: 0 | E50: 76 | F50: 0 | G50: 1990 | H50: 7 | I50: 4 | J50: 7.6 | K50: 10 | L50: 80 | M50: 1.345900193 | N50: 10.22884146 | O50: 1990-07-04 | P50: 10.22884146 | Q50: 1990-07-31
A51: 19900705 | B51: 1 | C51: 200 | D51: 0 | E51: 65 | F51: 0 | G51: 1990 | H51: 7 | I51: 5 | J51: 6.5 | K51: 10 | L51: 80 | M51: 1.345900193 | N51: 8.748351252 | O51: 1990-07-05 | P51: 8.748351252 | Q51: 1990-07-31
A52: 19900705 | B52: 2 | C52: 190 | D52: 0 | E52: 52 | F52: 0 | G52: 1990 | H52: 7 | I52: 5 | J52: 5.2 | K52: 10 | L52: 80 | M52: 1.345900193 | N52: 6.998681002 | O52: 1990-07-05 | P52: 6.998681002 | Q52: 1990-07-31
A53: 19900705 | B53: 3 | C53: 190 | D53: 0 | E53: 52 | F53: 0 | G53: 1990 | H53: 7 | I53: 5 | J53: 5.2 | K53: 10 | L53: 80 | M53: 1.345900193 | N53: 6.998681002 | O53: 1990-07-05 | P53: 6.998681002 | Q53: 1990-07-31
A54: 19900705 | B54: 4 | C54: 190 | D54: 0 | E54: 58 | F54: 0 | G54: 1990 | H54: 7 | I54: 5 | J54: 5.8 | K54: 10 | L54: 80 | M54: 1.345900193 | N54: 7.806221117 | O54: 1990-07-05 | P54: 7.806221117 | Q54: 1990-07-31
A55: 19900705 | B55: 5 | C55: 180 | D55: 0 | E55: 51 | F55: 0 | G55: 1990 | H55: 7 | I55: 5 | J55: 5.1 | K55: 10 | L55: 80 | M55: 1.345900193 | N55: 6.864090982 | O55: 1990-07-05 | P55: 6.864090982 | Q55: 1990-07-31
A56: 19900705 | B56: 6 | C56: 180 | D56: 0 | E56: 57 | F56: 0 | G56: 1990 | H56: 7 | I56: 5 | J56: 5.7 | K56: 10 | L56: 80 | M56: 1.345900193 | N56: 7.671631098 | O56: 1990-07-05 | P56: 7.671631098 | Q56: 1990-07-31
A57: 19900705 | B57: 7 | C57: 200 | D57: 0 | E57: 58 | F57: 0 | G57: 1990 | H57: 7 | I57: 5 | J57: 5.8 | K57: 10 | L57: 80 | M57: 1.345900193 | N57: 7.806221117 | O57: 1990-07-05 | P57: 7.806221117 | Q57: 1990-07-31
A58: 19900705 | B58: 8 | C58: 190 | D58: 0 | E58: 52 | F58: 0 | G58: 1990 | H58: 7 | I58: 5 | J58: 5.2 | K58: 10 | L58: 80 | M58: 1.345900193 | N58: 6.998681002 | O58: 1990-07-05 | P58: 6.998681002 | Q58: 1990-07-31
A59: 19900705 | B59: 9 | C59: 210 | D59: 0 | E59: 57 | F59: 0 | G59: 1990 | H59: 7 | I59: 5 | J59: 5.7 | K59: 10 | L59: 80 | M59: 1.345900193 | N59: 7.671631098 | O59: 1990-07-05 | P59: 7.671631098 | Q59: 1990-07-31
A60: 19900705 | B60: 10 | C60: 250 | D60: 0 | E60: 52 | F60: 0 | G60: 1990 | H60: 7 | I60: 5 | J60: 5.2 | K60: 10 | L60: 80 | M60: 1.345900193 | N60: 6.998681002 | O60: 1990-07-05 | P60: 6.998681002 | Q60: 1990-07-31
A61: 19900705 | B61: 11 | C61: 240 | D61: 0 | E61: 75 | F61: 0 | G61: 1990 | H61: 7 | I61: 5 | J61: 7.5 | K61: 10 | L61: 80 | M61: 1.345900193 | N61: 10.09425144 | O61: 1990-07-05 | P61: 10.09425144 | Q61: 1990-07-31
A62: 19900705 | B62: 12 | C62: 230 | D62: 0 | E62: 86 | F62: 0 | G62: 1990 | H62: 7 | I62: 5 | J62: 8.6 | K62: 10 | L62: 80 | M62: 1.345900193 | N62: 11.57474166 | O62: 1990-07-05 | P62: 11.57474166 | Q62: 1990-07-31
A63: 19900705 | B63: 13 | C63: 230 | D63: 0 | E63: 75 | F63: 0 | G63: 1990 | H63: 7 | I63: 5 | J63: 7.5 | K63: 10 | L63: 80 | M63: 1.345900193 | N63: 10.09425144 | O63: 1990-07-05 | P63: 10.09425144 | Q63: 1990-07-31
A64: 19900705 | B64: 14 | C64: 250 | D64: 0 | E64: 92 | F64: 0 | G64: 1990 | H64: 7 | I64: 5 | J64: 9.2 | K64: 10 | L64: 80 | M64: 1.345900193 | N64: 12.38228177 | O64: 1990-07-05 | P64: 12.38228177 | Q64: 1990-07-31
A65: 19900705 | B65: 15 | C65: 230 | D65: 0 | E65: 81 | F65: 0 | G65: 1990 | H65: 7 | I65: 5 | J65: 8.1 | K65: 10 | L65: 80 | M65: 1.345900193 | N65: 10.90179156 | O65: 1990-07-05 | P65: 10.90179156 | Q65: 1990-07-31
A66: 19900705 | B66: 16 | C66: 230 | D66: 0 | E66: 70 | F66: 0 | G66: 1990 | H66: 7 | I66: 5 | J66: 7 | K66: 10 | L66: 80 | M66: 1.345900193 | N66: 9.421301348 | O66: 1990-07-05 | P66: 9.421301348 | Q66: 1990-07-31
A67: 19900705 | B67: 17 | C67: 230 | D67: 0 | E67: 86 | F67: 0 | G67: 1990 | H67: 7 | I67: 5 | J67: 8.6 | K67: 10 | L67: 80 | M67: 1.345900193 | N67: 11.57474166 | O67: 1990-07-05 | P67: 11.57474166 | Q67: 1990-07-31
A68: 19900705 | B68: 18 | C68: 230 | D68: 0 | E68: 81 | F68: 0 | G68: 1990 | H68: 7 | I68: 5 | J68: 8.1 | K68: 10 | L68: 80 | M68: 1.345900193 | N68: 10.90179156 | O68: 1990-07-05 | P68: 10.90179156 | Q68: 1990-07-31
A69: 19900705 | B69: 19 | C69: 280 | D69: 0 | E69: 75 | F69: 0 | G69: 1990 | H69: 7 | I69: 5 | J69: 7.5 | K69: 10 | L69: 80 | M69: 1.345900193 | N69: 10.09425144 | O69: 1990-07-05 | P69: 10.09425144 | Q69: 1990-07-31
A70: 19900705 | B70: 20 | C70: 270 | D70: 0 | E70: 57 | F70: 0 | G70: 1990 | H70: 7 | I70: 5 | J70: 5.7 | K70: 10 | L70: 80 | M70: 1.345900193 | N70: 7.671631098 | O70: 1990-07-05 | P70: 7.671631098 | Q70: 1990-07-31
A71: 19900705 | B71: 21 | C71: 280 | D71: 0 | E71: 46 | F71: 0 | G71: 1990 | H71: 7 | I71: 5 | J71: 4.6 | K71: 10 | L71: 80 | M71: 1.345900193 | N71: 6.191140886 | O71: 1990-07-05 | P71: 6.191140886 | Q71: 1990-07-31
A72: 19900705 | B72: 22 | C72: 240 | D72: 0 | E72: 40 | F72: 0 | G72: 1990 | H72: 7 | I72: 5 | J72: 4 | K72: 10 | L72: 80 | M72: 1.345900193 | N72: 5.383600771 | O72: 1990-07-05 | P72: 5.383600771 | Q72: 1990-07-31
A73: 19900705 | B73: 23 | C73: 240 | D73: 0 | E73: 52 | F73: 0 | G73: 1990 | H73: 7 | I73: 5 | J73: 5.2 | K73: 10 | L73: 80 | M73: 1.345900193 | N73: 6.998681002 | O73: 1990-07-05 | P73: 6.998681002 | Q73: 1990-07-31
A74: 19900705 | B74: 24 | C74: 230 | D74: 0 | E74: 52 | F74: 0 | G74: 1990 | H74: 7 | I74: 5 | J74: 5.2 | K74: 10 | L74: 80 | M74: 1.345900193 | N74: 6.998681002 | O74: 1990-07-05 | P74: 6.998681002 | Q74: 1990-07-31
A75: 19900706 | B75: 1 | C75: 280 | D75: 0 | E75: 52 | F75: 0 | G75: 1990 | H75: 7 | I75: 6 | J75: 5.2 | K75: 10 | L75: 80 | M75: 1.345900193 | N75: 6.998681002 | O75: 1990-07-06 | P75: 6.998681002 | Q75: 1990-07-31
A76: 19900706 | B76: 2 | C76: 240 | D76: 0 | E76: 52 | F76: 0 | G76: 1990 | H76: 7 | I76: 6 | J76: 5.2 | K76: 10 | L76: 80 | M76: 1.345900193 | N76: 6.998681002 | O76: 1990-07-06 | P76: 6.998681002 | Q76: 1990-07-31
A77: 19900706 | B77: 3 | C77: 240 | D77: 0 | E77: 46 | F77: 0 | G77: 1990 | H77: 7 | I77: 6 | J77: 4.6 | K77: 10 | L77: 80 | M77: 1.345900193 | N77: 6.191140886 | O77: 1990-07-06 | P77: 6.191140886 | Q77: 1990-07-31
A78: 19900706 | B78: 4 | C78: 250 | D78: 0 | E78: 52 | F78: 0 | G78: 1990 | H78: 7 | I78: 6 | J78: 5.2 | K78: 10 | L78: 80 | M78: 1.345900193 | N78: 6.998681002 | O78: 1990-07-06 | P78: 6.998681002 | Q78: 1990-07-31
A79: 19900706 | B79: 5 | C79: 250 | D79: 0 | E79: 52 | F79: 0 | G79: 1990 | H79: 7 | I79: 6 | J79: 5.2 | K79: 10 | L79: 80 | M79: 1.345900193 | N79: 6.998681002 | O79: 1990-07-06 | P79: 6.998681002 | Q79: 1990-07-31
A80: 19900706 | B80: 6 | C80: 240 | D80: 0 | E80: 52 | F80: 0 | G80: 1990 | H80: 7 | I80: 6 | J80: 5.2 | K80: 10 | L80: 80 | M80: 1.345900193 | N80: 6.998681002 | O80: 1990-07-06 | P80: 6.998681002 | Q80: 1990-07-31
A81: 19900706 | B81: 7 | C81: 250 | D81: 0 | E81: 70 | F81: 0 | G81: 1990 | H81: 7 | I81: 6 | J81: 7 | K81: 10 | L81: 80 | M81: 1.345900193 | N81: 9.421301348 | O81: 1990-07-06 | P81: 9.421301348 | Q81: 1990-07-31
A82: 19900706 | B82: 8 | C82: 250 | D82: 0 | E82: 64 | F82: 0 | G82: 1990 | H82: 7 | I82: 6 | J82: 6.4 | K82: 10 | L82: 80 | M82: 1.345900193 | N82: 8.613761233 | O82: 1990-07-06 | P82: 8.613761233 | Q82: 1990-07-31
A83: 19900706 | B83: 9 | C83: 260 | D83: 0 | E83: 57 | F83: 0 | G83: 1990 | H83: 7 | I83: 6 | J83: 5.7 | K83: 10 | L83: 80 | M83: 1.345900193 | N83: 7.671631098 | O83: 1990-07-06 | P83: 7.671631098 | Q83: 1990-07-31
A84: 19900706 | B84: 10 | C84: 290 | D84: 0 | E84: 68 | F84: 0 | G84: 1990 | H84: 7 | I84: 6 | J84: 6.8 | K84: 10 | L84: 80 | M84: 1.345900193 | N84: 9.15212131 | O84: 1990-07-06 | P84: 9.15212131 | Q84: 1990-07-31
A85: 19900706 | B85: 11 | C85: 250 | D85: 0 | E85: 64 | F85: 0 | G85: 1990 | H85: 7 | I85: 6 | J85: 6.4 | K85: 10 | L85: 80 | M85: 1.345900193 | N85: 8.613761233 | O85: 1990-07-06 | P85: 8.613761233 | Q85: 1990-07-31
A86: 19900706 | B86: 12 | C86: 250 | D86: 0 | E86: 75 | F86: 0 | G86: 1990 | H86: 7 | I86: 6 | J86: 7.5 | K86: 10 | L86: 80 | M86: 1.345900193 | N86: 10.09425144 | O86: 1990-07-06 | P86: 10.09425144 | Q86: 1990-07-31
A87: 19900706 | B87: 13 | C87: 330 | D87: 0 | E87: 49 | F87: 0 | G87: 1990 | H87: 7 | I87: 6 | J87: 4.9 | K87: 10 | L87: 80 | M87: 1.345900193 | N87: 6.594910944 | O87: 1990-07-06 | P87: 6.594910944 | Q87: 1990-07-31
A88: 19900706 | B88: 14 | C88: 280 | D88: 0 | E88: 57 | F88: 0 | G88: 1990 | H88: 7 | I88: 6 | J88: 5.7 | K88: 10 | L88: 80 | M88: 1.345900193 | N88: 7.671631098 | O88: 1990-07-06 | P88: 7.671631098 | Q88: 1990-07-31
A89: 19900706 | B89: 15 | C89: 280 | D89: 0 | E89: 75 | F89: 0 | G89: 1990 | H89: 7 | I89: 6 | J89: 7.5 | K89: 10 | L89: 80 | M89: 1.345900193 | N89: 10.09425144 | O89: 1990-07-06 | P89: 10.09425144 | Q89: 1990-07-31
A90: 19900706 | B90: 16 | C90: 290 | D90: 0 | E90: 73 | F90: 0 | G90: 1990 | H90: 7 | I90: 6 | J90: 7.3 | K90: 10 | L90: 80 | M90: 1.345900193 | N90: 9.825071406 | O90: 1990-07-06 | P90: 9.825071406 | Q90: 1990-07-31
A91: 19900706 | B91: 17 | C91: 290 | D91: 0 | E91: 73 | F91: 0 | G91: 1990 | H91: 7 | I91: 6 | J91: 7.3 | K91: 10 | L91: 80 | M91: 1.345900193 | N91: 9.825071406 | O91: 1990-07-06 | P91: 9.825071406 | Q91: 1990-07-31
A92: 19900706 | B92: 18 | C92: 290 | D92: 0 | E92: 55 | F92: 0 | G92: =VALUE(LEFT(A92,4)) -> 1990 | H92: =VALUE(MID(A92,5,2)) -> 7 | I92: =VALUE(RIGHT(A92,2)) -> 6 | J92: =IF(E92>0,E92/10,FALSE) -> 5.5 | K92: 10 | L92: =L91 -> 80 | M92: =(L92/K92)^$L$15 -> 1.345900193 | N92: =IF(J92,J92*M92) -> 7.402451059 | O92: =DATE(G92,H92,I92) -> 1990-07-06 | P92: =N92 -> 7.402451059 | Q92: =EOMONTH(O92,0) -> 1990-07-31
A93: 19900706 | B93: 19 | C93: 290 | D93: 0 | E93: 49 | F93: 0 | G93: 1990 | H93: 7 | I93: 6 | J93: 4.9 | K93: 10 | L93: 80 | M93: 1.345900193 | N93: 6.594910944 | O93: 1990-07-06 | P93: 6.594910944 | Q93: 1990-07-31
A94: 19900706 | B94: 20 | C94: 240 | D94: 0 | E94: 24 | F94: 0 | G94: 1990 | H94: 7 | I94: 6 | J94: 2.4 | K94: 10 | L94: 80 | M94: 1.345900193 | N94: 3.230160462 | O94: 1990-07-06 | P94: 3.230160462 | Q94: 1990-07-31
A95: 19900706 | B95: 21 | C95: 210 | D95: 0 | E95: 29 | F95: 0 | G95: 1990 | H95: 7 | I95: 6 | J95: 2.9 | K95: 10 | L95: 80 | M95: 1.345900193 | N95: 3.903110559 | O95: 1990-07-06 | P95: 3.903110559 | Q95: 1990-07-31
A96: 19900706 | B96: 22 | C96: 220 | D96: 0 | E96: 29 | F96: 0 | G96: 1990 | H96: 7 | I96: 6 | J96: 2.9 | K96: 10 | L96: 80 | M96: 1.345900193 | N96: 3.903110559 | O96: 1990-07-06 | P96: 3.903110559 | Q96: 1990-07-31
A97: 19900706 | B97: 23 | C97: 210 | D97: 0 | E97: 29 | F97: 0 | G97: 1990 | H97: 7 | I97: 6 | J97: 2.9 | K97: 10 | L97: 80 | M97: 1.345900193 | N97: 3.903110559 | O97: 1990-07-06 | P97: 3.903110559 | Q97: 1990-07-31
A98: 19900706 | B98: 24 | C98: 210 | D98: 0 | E98: 29 | F98: 0 | G98: 1990 | H98: 7 | I98: 6 | J98: 2.9 | K98: 10 | L98: 80 | M98: 1.345900193 | N98: 3.903110559 | O98: 1990-07-06 | P98: 3.903110559 | Q98: 1990-07-31
A99: 19900707 | B99: 1 | C99: 220 | D99: 0 | E99: 29 | F99: 0 | G99: 1990 | H99: 7 | I99: 7 | J99: 2.9 | K99: 10 | L99: 80 | M99: 1.345900193 | N99: 3.903110559 | O99: 1990-07-07 | P99: 3.903110559 | Q99: 1990-07-31
A100: 19900707 | B100: 2 | C100: 210 | D100: 0 | E100: 29 | F100: 0 | G100: 1990 | H100: 7 | I100: 7 | J100: 2.9 | K100: 10 | L100: 80 | M100: 1.345900193 | N100: 3.903110559 | O100: 1990-07-07 | P100: 3.903110559 | Q100: 1990-07-31
A101: 19900707 | B101: 3 | C101: 210 | D101: 0 | E101: 29 | F101: 0 | G101: 1990 | H101: 7 | I101: 7 | J101: 2.9 | K101: 10 | L101: 80 | M101: 1.345900193 | N101: 3.903110559 | O101: 1990-07-07 | P101: 3.903110559 | Q101: 1990-07-31
A102: 19900707 | B102: 4 | C102: 210 | D102: 0 | E102: 35 | F102: 0 | G102: 1990 | H102: 7 | I102: 7 | J102: 3.5 | K102: 10 | L102: 80 | M102: 1.345900193 | N102: 4.710650674 | O102: 1990-07-07 | P102: 4.710650674 | Q102: 1990-07-31
A103: 19900707 | B103: 5 | C103: 210 | D103: 0 | E103: 35 | F103: 0 | G103: 1990 | H103: 7 | I103: 7 | J103: 3.5 | K103: 10 | L103: 80 | M103: 1.345900193 | N103: 4.710650674 | O103: 1990-07-07 | P103: 4.710650674 | Q103: 1990-07-31
A104: 19900707 | B104: 6 | C104: 210 | D104: 0 | E104: 46 | F104: 0 | G104: 1990 | H104: 7 | I104: 7 | J104: 4.6 | K104: 10 | L104: 80 | M104: 1.345900193 | N104: 6.191140886 | O104: 1990-07-07 | P104: 6.191140886 | Q104: 1990-07-31
A105: 19900707 | B105: 7 | C105: 210 | D105: 0 | E105: 46 | F105: 0 | G105: 1990 | H105: 7 | I105: 7 | J105: 4.6 | K105: 10 | L105: 80 | M105: 1.345900193 | N105: 6.191140886 | O105: 1990-07-07 | P105: 6.191140886 | Q105: 1990-07-31
A106: 19900707 | B106: 8 | C106: 220 | D106: 0 | E106: 46 | F106: 0 | G106: 1990 | H106: 7 | I106: 7 | J106: 4.6 | K106: 10 | L106: 80 | M106: 1.345900193 | N106: 6.191140886 | O106: 1990-07-07 | P106: 6.191140886 | Q106: 1990-07-31
A107: 19900707 | B107: 9 | C107: 210 | D107: 0 | E107: 57 | F107: 0 | G107: 1990 | H107: 7 | I107: 7 | J107: 5.7 | K107: 10 | L107: 80 | M107: 1.345900193 | N107: 7.671631098 | O107: 1990-07-07 | P107: 7.671631098 | Q107: 1990-07-31
A108: 19900707 | B108: 10 | C108: 220 | D108: 0 | E108: 57 | F108: 0 | G108: 1990 | H108: 7 | I108: 7 | J108: 5.7 | K108: 10 | L108: 80 | M108: 1.345900193 | N108: 7.671631098 | O108: 1990-07-07 | P108: 7.671631098 | Q108: 1990-07-31
A109: 19900707 | B109: 11 | C109: 210 | D109: 0 | E109: 57 | F109: 0 | G109: 1990 | H109: 7 | I109: 7 | J109: 5.7 | K109: 10 | L109: 80 | M109: 1.345900193 | N109: 7.671631098 | O109: 1990-07-07 | P109: 7.671631098 | Q109: 1990-07-31
A110: 19900707 | B110: 12 | C110: 210 | D110: 0 | E110: 57 | F110: 0 | G110: 1990 | H110: 7 | I110: 7 | J110: 5.7 | K110: 10 | L110: 80 | M110: 1.345900193 | N110: 7.671631098 | O110: 1990-07-07 | P110: 7.671631098 | Q110: 1990-07-31
A111: 19900707 | B111: 13 | C111: 190 | D111: 0 | E111: 47 | F111: 0 | G111: 1990 | H111: 7 | I111: 7 | J111: 4.7 | K111: 10 | L111: 80 | M111: 1.345900193 | N111: 6.325730905 | O111: 1990-07-07 | P111: 6.325730905 | Q111: 1990-07-31
A112: 19900707 | B112: 14 | C112: 190 | D112: 0 | E112: 47 | F112: 0 | G112: 1990 | H112: 7 | I112: 7 | J112: 4.7 | K112: 10 | L112: 80 | M112: 1.345900193 | N112: 6.325730905 | O112: 1990-07-07 | P112: 6.325730905 | Q112: 1990-07-31
A113: 19900707 | B113: 15 | C113: 190 | D113: 0 | E113: 47 | F113: 0 | G113: 1990 | H113: 7 | I113: 7 | J113: 4.7 | K113: 10 | L113: 80 | M113: 1.345900193 | N113: 6.325730905 | O113: 1990-07-07 | P113: 6.325730905 | Q113: 1990-07-31
A114: 19900707 | B114: 16 | C114: 200 | D114: 0 | E114: 47 | F114: 0 | G114: 1990 | H114: 7 | I114: 7 | J114: 4.7 | K114: 10 | L114: 80 | M114: 1.345900193 | N114: 6.325730905 | O114: 1990-07-07 | P114: 6.325730905 | Q114: 1990-07-31
A115: 19900707 | B115: 17 | C115: 210 | D115: 0 | E115: 46 | F115: 0 | G115: 1990 | H115: 7 | I115: 7 | J115: 4.6 | K115: 10 | L115: 80 | M115: 1.345900193 | N115: 6.191140886 | O115: 1990-07-07 | P115: 6.191140886 | Q115: 1990-07-31
A116: 19900707 | B116: 18 | C116: 210 | D116: 0 | E116: 46 | F116: 0 | G116: 1990 | H116: 7 | I116: 7 | J116: 4.6 | K116: 10 | L116: 80 | M116: 1.345900193 | N116: 6.191140886 | O116: 1990-07-07 | P116: 6.191140886 | Q116: 1990-07-31
A117: 19900707 | B117: 19 | C117: 210 | D117: 0 | E117: 41 | F117: 0 | G117: 1990 | H117: 7 | I117: 7 | J117: 4.1 | K117: 10 | L117: 80 | M117: 1.345900193 | N117: 5.51819079 | O117: 1990-07-07 | P117: 5.51819079 | Q117: 1990-07-31
A118: 19900707 | B118: 20 | C118: 220 | D118: 0 | E118: 35 | F118: 0 | G118: 1990 | H118: 7 | I118: 7 | J118: 3.5 | K118: 10 | L118: 80 | M118: 1.345900193 | N118: 4.710650674 | O118: 1990-07-07 | P118: 4.710650674 | Q118: 1990-07-31
A119: 19900707 | B119: 21 | C119: 220 | D119: 0 | E119: 41 | F119: 0 | G119: 1990 | H119: 7 | I119: 7 | J119: 4.1 | K119: 10 | L119: 80 | M119: 1.345900193 | N119: 5.51819079 | O119: 1990-07-07 | P119: 5.51819079 | Q119: 1990-07-31
A120: 19900707 | B120: 22 | C120: 220 | D120: 0 | E120: 41 | F120: 0 | G120: 1990 | H120: 7 | I120: 7 | J120: 4.1 | K120: 10 | L120: 80 | M120: 1.345900193 | N120: 5.51819079 | O120: 1990-07-07 | P120: 5.51819079 | Q120: 1990-07-31
A121: 19900707 | B121: 23 | C121: 220 | D121: 0 | E121: 41 | F121: 0 | G121: 1990 | H121: 7 | I121: 7 | J121: 4.1 | K121: 10 | L121: 80 | M121: 1.345900193 | N121: 5.51819079 | O121: 1990-07-07 | P121: 5.51819079 | Q121: 1990-07-31
A122: 19900707 | B122: 24 | C122: 220 | D122: 0 | E122: 41 | F122: 0 | G122: 1990 | H122: 7 | I122: 7 | J122: 4.1 | K122: 10 | L122: 80 | M122: 1.345900193 | N122: 5.51819079 | O122: 1990-07-07 | P122: 5.51819079 | Q122: 1990-07-31
A123: 19900708 | B123: 1 | C123: 220 | D123: 0 | E123: 46 | F123: 0 | G123: 1990 | H123: 7 | I123: 8 | J123: 4.6 | K123: 10 | L123: 80 | M123: 1.345900193 | N123: 6.191140886 | O123: 1990-07-08 | P123: 6.191140886 | Q123: 1990-07-31
A124: 19900708 | B124: 2 | C124: 220 | D124: 0 | E124: 41 | F124: 0 | G124: 1990 | H124: 7 | I124: 8 | J124: 4.1 | K124: 10 | L124: 80 | M124: 1.345900193 | N124: 5.51819079 | O124: 1990-07-08 | P124: 5.51819079 | Q124: 1990-07-31
A125: 19900708 | B125: 3 | C125: 230 | D125: 0 | E125: 46 | F125: 0 | G125: 1990 | H125: 7 | I125: 8 | J125: 4.6 | K125: 10 | L125: 80 | M125: 1.345900193 | N125: 6.191140886 | O125: 1990-07-08 | P125: 6.191140886 | Q125: 1990-07-31
A126: 19900708 | B126: 4 | C126: 240 | D126: 0 | E126: 46 | F126: 0 | G126: 1990 | H126: 7 | I126: 8 | J126: 4.6 | K126: 10 | L126: 80 | M126: 1.345900193 | N126: 6.191140886 | O126: 1990-07-08 | P126: 6.191140886 | Q126: 1990-07-31
A127: 19900708 | B127: 5 | C127: 220 | D127: 0 | E127: 46 | F127: 0 | G127: 1990 | H127: 7 | I127: 8 | J127: 4.6 | K127: 10 | L127: 80 | M127: 1.345900193 | N127: 6.191140886 | O127: 1990-07-08 | P127: 6.191140886 | Q127: 1990-07-31
A128: 19900708 | B128: 6 | C128: 230 | D128: 0 | E128: 46 | F128: 0 | G128: 1990 | H128: 7 | I128: 8 | J128: 4.6 | K128: 10 | L128: 80 | M128: 1.345900193 | N128: 6.191140886 | O128: 1990-07-08 | P128: 6.191140886 | Q128: 1990-07-31
A129: 19900708 | B129: 7 | C129: 230 | D129: 0 | E129: 52 | F129: 0 | G129: 1990 | H129: 7 | I129: 8 | J129: 5.2 | K129: 10 | L129: 80 | M129: 1.345900193 | N129: 6.998681002 | O129: 1990-07-08 | P129: 6.998681002 | Q129: 1990-07-31
A130: 19900708 | B130: 8 | C130: 250 | D130: 0 | E130: 57 | F130: 0 | G130: 1990 | H130: 7 | I130: 8 | J130: 5.7 | K130: 10 | L130: 80 | M130: 1.345900193 | N130: 7.671631098 | O130: 1990-07-08 | P130: 7.671631098 | Q130: 1990-07-31
A131: 19900708 | B131: 9 | C131: 240 | D131: 0 | E131: 46 | F131: 0 | G131: 1990 | H131: 7 | I131: 8 | J131: 4.6 | K131: 10 | L131: 80 | M131: 1.345900193 | N131: 6.191140886 | O131: 1990-07-08 | P131: 6.191140886 | Q131: 1990-07-31
A132: 19900708 | B132: 10 | C132: 250 | D132: 0 | E132: 57 | F132: 0 | G132: 1990 | H132: 7 | I132: 8 | J132: 5.7 | K132: 10 | L132: 80 | M132: 1.345900193 | N132: 7.671631098 | O132: 1990-07-08 | P132: 7.671631098 | Q132: 1990-07-31
A133: 19900708 | B133: 11 | C133: 250 | D133: 0 | E133: 57 | F133: 0 | G133: 1990 | H133: 7 | I133: 8 | J133: 5.7 | K133: 10 | L133: 80 | M133: 1.345900193 | N133: 7.671631098 | O133: 1990-07-08 | P133: 7.671631098 | Q133: 1990-07-31
A134: 19900708 | B134: 12 | C134: 250 | D134: 0 | E134: 70 | F134: 0 | G134: 1990 | H134: 7 | I134: 8 | J134: 7 | K134: 10 | L134: 80 | M134: 1.345900193 | N134: 9.421301348 | O134: 1990-07-08 | P134: 9.421301348 | Q134: 1990-07-31
A135: 19900708 | B135: 13 | C135: 230 | D135: 0 | E135: 70 | F135: 0 | G135: 1990 | H135: 7 | I135: 8 | J135: 7 | K135: 10 | L135: 80 | M135: 1.345900193 | N135: 9.421301348 | O135: 1990-07-08 | P135: 9.421301348 | Q135: 1990-07-31
A136: 19900708 | B136: 14 | C136: 240 | D136: 0 | E136: 52 | F136: 0 | G136: 1990 | H136: 7 | I136: 8 | J136: 5.2 | K136: 10 | L136: 80 | M136: 1.345900193 | N136: 6.998681002 | O136: 1990-07-08 | P136: 6.998681002 | Q136: 1990-07-31
A137: 19900708 | B137: 15 | C137: 260 | D137: 0 | E137: 46 | F137: 0 | G137: 1990 | H137: 7 | I137: 8 | J137: 4.6 | K137: 10 | L137: 80 | M137: 1.345900193 | N137: 6.191140886 | O137: 1990-07-08 | P137: 6.191140886 | Q137: 1990-07-31
A138: 19900708 | B138: 16 | C138: 230 | D138: 0 | E138: 35 | F138: 0 | G138: 1990 | H138: 7 | I138: 8 | J138: 3.5 | K138: 10 | L138: 80 | M138: 1.345900193 | N138: 4.710650674 | O138: 1990-07-08 | P138: 4.710650674 | Q138: 1990-07-31
A139: 19900708 | B139: 17 | C139: 240 | D139: 0 | E139: 46 | F139: 0 | G139: 1990 | H139: 7 | I139: 8 | J139: 4.6 | K139: 10 | L139: 80 | M139: 1.345900193 | N139: 6.191140886 | O139: 1990-07-08 | P139: 6.191140886 | Q139: 1990-07-31
A140: 19900708 | B140: 18 | C140: 250 | D140: 0 | E140: 57 | F140: 0 | G140: 1990 | H140: 7 | I140: 8 | J140: 5.7 | K140: 10 | L140: 80 | M140: 1.345900193 | N140: 7.671631098 | O140: 1990-07-08 | P140: 7.671631098 | Q140: 1990-07-31
A141: 19900708 | B141: 19 | C141: 230 | D141: 0 | E141: 70 | F141: 0 | G141: 1990 | H141: 7 | I141: 8 | J141: 7 | K141: 10 | L141: 80 | M141: 1.345900193 | N141: 9.421301348 | O141: 1990-07-08 | P141: 9.421301348 | Q141: 1990-07-31
A142: 19900708 | B142: 20 | C142: 240 | D142: 0 | E142: 70 | F142: 0 | G142: 1990 | H142: 7 | I142: 8 | J142: 7 | K142: 10 | L142: 80 | M142: 1.345900193 | N142: 9.421301348 | O142: 1990-07-08 | P142: 9.421301348 | Q142: 1990-07-31
A143: 19900708 | B143: 21 | C143: 240 | D143: 0 | E143: 52 | F143: 0 | G143: 1990 | H143: 7 | I143: 8 | J143: 5.2 | K143: 10 | L143: 80 | M143: 1.345900193 | N143: 6.998681002 | O143: 1990-07-08 | P143: 6.998681002 | Q143: 1990-07-31
A144: 19900708 | B144: 22 | C144: 240 | D144: 0 | E144: 52 | F144: 0 | G144: 1990 | H144: 7 | I144: 8 | J144: 5.2 | K144: 10 | L144: 80 | M144: 1.345900193 | N144: 6.998681002 | O144: 1990-07-08 | P144: 6.998681002 | Q144: 1990-07-31
A145: 19900708 | B145: 23 | C145: 250 | D145: 0 | E145: 57 | F145: 0 | G145: 1990 | H145: 7 | I145: 8 | J145: 5.7 | K145: 10 | L145: 80 | M145: 1.345900193 | N145: 7.671631098 | O145: 1990-07-08 | P145: 7.671631098 | Q145: 1990-07-31
A146: 19900708 | B146: 24 | C146: 240 | D146: 0 | E146: 64 | F146: 0 | G146: 1990 | H146: 7 | I146: 8 | J146: 6.4 | K146: 10 | L146: 80 | M146: 1.345900193 | N146: 8.613761233 | O146: 1990-07-08 | P146: 8.613761233 | Q146: 1990-07-31
A147: 19900709 | B147: 1 | C147: 250 | D147: 0 | E147: 57 | F147: 0 | G147: 1990 | H147: 7 | I147: 9 | J147: 5.7 | K147: 10 | L147: 80 | M147: 1.345900193 | N147: 7.671631098 | O147: 1990-07-09 | P147: 7.671631098 | Q147: 1990-07-31
A148: 19900709 | B148: 2 | C148: 260 | D148: 0 | E148: 52 | F148: 0 | G148: 1990 | H148: 7 | I148: 9 | J148: 5.2 | K148: 10 | L148: 80 | M148: 1.345900193 | N148: 6.998681002 | O148: 1990-07-09 | P148: 6.998681002 | Q148: 1990-07-31
A149: 19900709 | B149: 3 | C149: 270 | D149: 0 | E149: 70 | F149: 0 | G149: 1990 | H149: 7 | I149: 9 | J149: 7 | K149: 10 | L149: 80 | M149: 1.345900193 | N149: 9.421301348 | O149: 1990-07-09 | P149: 9.421301348 | Q149: 1990-07-31
A150: 19900709 | B150: 4 | C150: 260 | D150: 0 | E150: 52 | F150: 0 | G150: 1990 | H150: 7 | I150: 9 | J150: 5.2 | K150: 10 | L150: 80 | M150: 1.345900193 | N150: 6.998681002 | O150: 1990-07-09 | P150: 6.998681002 | Q150: 1990-07-31
A151: 19900709 | B151: 5 | C151: 250 | D151: 0 | E151: 52 | F151: 0 | G151: 1990 | H151: 7 | I151: 9 | J151: 5.2 | K151: 10 | L151: 80 | M151: 1.345900193 | N151: 6.998681002 | O151: 1990-07-09 | P151: 6.998681002 | Q151: 1990-07-31
A152: 19900709 | B152: 6 | C152: 240 | D152: 0 | E152: 52 | F152: 0 | G152: 1990 | H152: 7 | I152: 9 | J152: 5.2 | K152: 10 | L152: 80 | M152: 1.345900193 | N152: 6.998681002 | O152: 1990-07-09 | P152: 6.998681002 | Q152: 1990-07-31
A153: 19900709 | B153: 7 | C153: 240 | D153: 0 | E153: 52 | F153: 0 | G153: 1990 | H153: 7 | I153: 9 | J153: 5.2 | K153: 10 | L153: 80 | M153: 1.345900193 | N153: 6.998681002 | O153: 1990-07-09 | P153: 6.998681002 | Q153: 1990-07-31
A154: 19900709 | B154: 8 | C154: 260 | D154: 0 | E154: 64 | F154: 0 | G154: 1990 | H154: 7 | I154: 9 | J154: 6.4 | K154: 10 | L154: 80 | M154: 1.345900193 | N154: 8.613761233 | O154: 1990-07-09 | P154: 8.613761233 | Q154: 1990-07-31
A155: 19900709 | B155: 9 | C155: 260 | D155: 0 | E155: 70 | F155: 0 | G155: 1990 | H155: 7 | I155: 9 | J155: 7 | K155: 10 | L155: 80 | M155: 1.345900193 | N155: 9.421301348 | O155: 1990-07-09 | P155: 9.421301348 | Q155: 1990-07-31
A156: 19900709 | B156: 10 | C156: 260 | D156: 0 | E156: 64 | F156: 0 | G156: =VALUE(LEFT(A156,4)) -> 1990 | H156: =VALUE(MID(A156,5,2)) -> 7 | I156: =VALUE(RIGHT(A156,2)) -> 9 | J156: =IF(E156>0,E156/10,FALSE) -> 6.4 | K156: 10 | L156: =L155 -> 80 | M156: =(L156/K156)^$L$15 -> 1.345900193 | N156: =IF(J156,J156*M156) -> 8.613761233 | O156: =DATE(G156,H156,I156) -> 1990-07-09 | P156: =N156 -> 8.613761233 | Q156: =EOMONTH(O156,0) -> 1990-07-31
A157: 19900709 | B157: 11 | C157: 270 | D157: 0 | E157: 70 | F157: 0 | G157: 1990 | H157: 7 | I157: 9 | J157: 7 | K157: 10 | L157: 80 | M157: 1.345900193 | N157: 9.421301348 | O157: 1990-07-09 | P157: 9.421301348 | Q157: 1990-07-31
A158: 19900709 | B158: 12 | C158: 260 | D158: 0 | E158: 70 | F158: 0 | G158: 1990 | H158: 7 | I158: 9 | J158: 7 | K158: 10 | L158: 80 | M158: 1.345900193 | N158: 9.421301348 | O158: 1990-07-09 | P158: 9.421301348 | Q158: 1990-07-31
A159: 19900709 | B159: 13 | C159: 260 | D159: 0 | E159: 64 | F159: 0 | G159: 1990 | H159: 7 | I159: 9 | J159: 6.4 | K159: 10 | L159: 80 | M159: 1.345900193 | N159: 8.613761233 | O159: 1990-07-09 | P159: 8.613761233 | Q159: 1990-07-31
A160: 19900709 | B160: 14 | C160: 260 | D160: 0 | E160: 64 | F160: 0 | G160: 1990 | H160: 7 | I160: 9 | J160: 6.4 | K160: 10 | L160: 80 | M160: 1.345900193 | N160: 8.613761233 | O160: 1990-07-09 | P160: 8.613761233 | Q160: 1990-07-31
A161: 19900709 | B161: 15 | C161: 250 | D161: 0 | E161: 57 | F161: 0 | G161: 1990 | H161: 7 | I161: 9 | J161: 5.7 | K161: 10 | L161: 80 | M161: 1.345900193 | N161: 7.671631098 | O161: 1990-07-09 | P161: 7.671631098 | Q161: 1990-07-31
A162: 19900709 | B162: 16 | C162: 270 | D162: 0 | E162: 64 | F162: 0 | G162: 1990 | H162: 7 | I162: 9 | J162: 6.4 | K162: 10 | L162: 80 | M162: 1.345900193 | N162: 8.613761233 | O162: 1990-07-09 | P162: 8.613761233 | Q162: 1990-07-31
A163: 19900709 | B163: 17 | C163: 280 | D163: 0 | E163: 57 | F163: 0 | G163: 1990 | H163: 7 | I163: 9 | J163: 5.7 | K163: 10 | L163: 80 | M163: 1.345900193 | N163: 7.671631098 | O163: 1990-07-09 | P163: 7.671631098 | Q163: 1990-07-31
A164: 19900709 | B164: 18 | C164: 240 | D164: 0 | E164: 40 | F164: 0 | G164: 1990 | H164: 7 | I164: 9 | J164: 4 | K164: 10 | L164: 80 | M164: 1.345900193 | N164: 5.383600771 | O164: 1990-07-09 | P164: 5.383600771 | Q164: 1990-07-31
A165: 19900709 | B165: 19 | C165: 240 | D165: 0 | E165: 40 | F165: 0 | G165: 1990 | H165: 7 | I165: 9 | J165: 4 | K165: 10 | L165: 80 | M165: 1.345900193 | N165: 5.383600771 | O165: 1990-07-09 | P165: 5.383600771 | Q165: 1990-07-31
A166: 19900709 | B166: 20 | C166: 230 | D166: 0 | E166: 40 | F166: 0 | G166: 1990 | H166: 7 | I166: 9 | J166: 4 | K166: 10 | L166: 80 | M166: 1.345900193 | N166: 5.383600771 | O166: 1990-07-09 | P166: 5.383600771 | Q166: 1990-07-31
A167: 19900709 | B167: 21 | C167: 220 | D167: 0 | E167: 41 | F167: 0 | G167: 1990 | H167: 7 | I167: 9 | J167: 4.1 | K167: 10 | L167: 80 | M167: 1.345900193 | N167: 5.51819079 | O167: 1990-07-09 | P167: 5.51819079 | Q167: 1990-07-31
A168: 19900709 | B168: 22 | C168: 230 | D168: 0 | E168: 40 | F168: 0 | G168: 1990 | H168: 7 | I168: 9 | J168: 4 | K168: 10 | L168: 80 | M168: 1.345900193 | N168: 5.383600771 | O168: 1990-07-09 | P168: 5.383600771 | Q168: 1990-07-31
A169: 19900709 | B169: 23 | C169: 230 | D169: 0 | E169: 52 | F169: 0 | G169: 1990 | H169: 7 | I169: 9 | J169: 5.2 | K169: 10 | L169: 80 | M169: 1.345900193 | N169: 6.998681002 | O169: 1990-07-09 | P169: 6.998681002 | Q169: 1990-07-31
A170: 19900709 | B170: 24 | C170: 230 | D170: 0 | E170: 52 | F170: 0 | G170: 1990 | H170: 7 | I170: 9 | J170: 5.2 | K170: 10 | L170: 80 | M170: 1.345900193 | N170: 6.998681002 | O170: 1990-07-09 | P170: 6.998681002 | Q170: 1990-07-31
A171: 19900710 | B171: 1 | C171: 240 | D171: 0 | E171: 46 | F171: 0 | G171: 1990 | H171: 7 | I171: 10 | J171: 4.6 | K171: 10 | L171: 80 | M171: 1.345900193 | N171: 6.191140886 | O171: 1990-07-10 | P171: 6.191140886 | Q171: 1990-07-31
A172: 19900710 | B172: 2 | C172: 240 | D172: 0 | E172: 52 | F172: 0 | G172: 1990 | H172: 7 | I172: 10 | J172: 5.2 | K172: 10 | L172: 80 | M172: 1.345900193 | N172: 6.998681002 | O172: 1990-07-10 | P172: 6.998681002 | Q172: 1990-07-31
A173: 19900710 | B173: 3 | C173: 250 | D173: 0 | E173: 52 | F173: 0 | G173: 1990 | H173: 7 | I173: 10 | J173: 5.2 | K173: 10 | L173: 80 | M173: 1.345900193 | N173: 6.998681002 | O173: 1990-07-10 | P173: 6.998681002 | Q173: 1990-07-31
A174: 19900710 | B174: 4 | C174: 250 | D174: 0 | E174: 46 | F174: 0 | G174: 1990 | H174: 7 | I174: 10 | J174: 4.6 | K174: 10 | L174: 80 | M174: 1.345900193 | N174: 6.191140886 | O174: 1990-07-10 | P174: 6.191140886 | Q174: 1990-07-31
A175: 19900710 | B175: 5 | C175: 250 | D175: 0 | E175: 52 | F175: 0 | G175: 1990 | H175: 7 | I175: 10 | J175: 5.2 | K175: 10 | L175: 80 | M175: 1.345900193 | N175: 6.998681002 | O175: 1990-07-10 | P175: 6.998681002 | Q175: 1990-07-31
A176: 19900710 | B176: 6 | C176: 270 | D176: 0 | E176: 57 | F176: 0 | G176: 1990 | H176: 7 | I176: 10 | J176: 5.7 | K176: 10 | L176: 80 | M176: 1.345900193 | N176: 7.671631098 | O176: 1990-07-10 | P176: 7.671631098 | Q176: 1990-07-31
A177: 19900710 | B177: 7 | C177: 270 | D177: 0 | E177: 57 | F177: 0 | G177: 1990 | H177: 7 | I177: 10 | J177: 5.7 | K177: 10 | L177: 80 | M177: 1.345900193 | N177: 7.671631098 | O177: 1990-07-10 | P177: 7.671631098 | Q177: 1990-07-31
A178: 19900710 | B178: 8 | C178: 260 | D178: 0 | E178: 57 | F178: 0 | G178: 1990 | H178: 7 | I178: 10 | J178: 5.7 | K178: 10 | L178: 80 | M178: 1.345900193 | N178: 7.671631098 | O178: 1990-07-10 | P178: 7.671631098 | Q178: 1990-07-31
A179: 19900710 | B179: 9 | C179: 260 | D179: 0 | E179: 64 | F179: 0 | G179: 1990 | H179: 7 | I179: 10 | J179: 6.4 | K179: 10 | L179: 80 | M179: 1.345900193 | N179: 8.613761233 | O179: 1990-07-10 | P179: 8.613761233 | Q179: 1990-07-31
A180: 19900710 | B180: 10 | C180: 280 | D180: 0 | E180: 64 | F180: 0 | G180: 1990 | H180: 7 | I180: 10 | J180: 6.4 | K180: 10 | L180: 80 | M180: 1.345900193 | N180: 8.613761233 | O180: 1990-07-10 | P180: 8.613761233 | Q180: 1990-07-31
A181: 19900710 | B181: 11 | C181: 290 | D181: 0 | E181: 60 | F181: 0 | G181: 1990 | H181: 7 | I181: 10 | J181: 6 | K181: 10 | L181: 80 | M181: 1.345900193 | N181: 8.075401156 | O181: 1990-07-10 | P181: 8.075401156 | Q181: 1990-07-31
A182: 19900710 | B182: 12 | C182: 290 | D182: 0 | E182: 73 | F182: 0 | G182: 1990 | H182: 7 | I182: 10 | J182: 7.3 | K182: 10 | L182: 80 | M182: 1.345900193 | N182: 9.825071406 | O182: 1990-07-10 | P182: 9.825071406 | Q182: 1990-07-31
A183: 19900710 | B183: 13 | C183: 300 | D183: 0 | E183: 68 | F183: 0 | G183: 1990 | H183: 7 | I183: 10 | J183: 6.8 | K183: 10 | L183: 80 | M183: 1.345900193 | N183: 9.15212131 | O183: 1990-07-10 | P183: 9.15212131 | Q183: 1990-07-31
A184: 19900710 | B184: 14 | C184: 290 | D184: 0 | E184: 73 | F184: 0 | G184: 1990 | H184: 7 | I184: 10 | J184: 7.3 | K184: 10 | L184: 80 | M184: 1.345900193 | N184: 9.825071406 | O184: 1990-07-10 | P184: 9.825071406 | Q184: 1990-07-31
A185: 19900710 | B185: 15 | C185: 300 | D185: 0 | E185: 60 | F185: 0 | G185: 1990 | H185: 7 | I185: 10 | J185: 6 | K185: 10 | L185: 80 | M185: 1.345900193 | N185: 8.075401156 | O185: 1990-07-10 | P185: 8.075401156 | Q185: 1990-07-31
A186: 19900710 | B186: 16 | C186: 310 | D186: 0 | E186: 49 | F186: 0 | G186: 1990 | H186: 7 | I186: 10 | J186: 4.9 | K186: 10 | L186: 80 | M186: 1.345900193 | N186: 6.594910944 | O186: 1990-07-10 | P186: 6.594910944 | Q186: 1990-07-31
A187: 19900710 | B187: 17 | C187: 310 | D187: 0 | E187: 61 | F187: 0 | G187: 1990 | H187: 7 | I187: 10 | J187: 6.1 | K187: 10 | L187: 80 | M187: 1.345900193 | N187: 8.209991175 | O187: 1990-07-10 | P187: 8.209991175 | Q187: 1990-07-31
A188: 19900710 | B188: 18 | C188: 310 | D188: 0 | E188: 55 | F188: 0 | G188: 1990 | H188: 7 | I188: 10 | J188: 5.5 | K188: 10 | L188: 80 | M188: 1.345900193 | N188: 7.402451059 | O188: 1990-07-10 | P188: 7.402451059 | Q188: 1990-07-31
A189: 19900710 | B189: 19 | C189: 310 | D189: 0 | E189: 49 | F189: 0 | G189: 1990 | H189: 7 | I189: 10 | J189: 4.9 | K189: 10 | L189: 80 | M189: 1.345900193 | N189: 6.594910944 | O189: 1990-07-10 | P189: 6.594910944 | Q189: 1990-07-31
A190: 19900710 | B190: 20 | C190: 290 | D190: 0 | E190: 31 | F190: 0 | G190: 1990 | H190: 7 | I190: 10 | J190: 3.1 | K190: 10 | L190: 80 | M190: 1.345900193 | N190: 4.172290597 | O190: 1990-07-10 | P190: 4.172290597 | Q190: 1990-07-31
A191: 19900710 | B191: 21 | C191: 290 | D191: 0 | E191: 31 | F191: 0 | G191: 1990 | H191: 7 | I191: 10 | J191: 3.1 | K191: 10 | L191: 80 | M191: 1.345900193 | N191: 4.172290597 | O191: 1990-07-10 | P191: 4.172290597 | Q191: 1990-07-31
A192: 19900710 | B192: 22 | C192: 280 | D192: 0 | E192: 29 | F192: 0 | G192: 1990 | H192: 7 | I192: 10 | J192: 2.9 | K192: 10 | L192: 80 | M192: 1.345900193 | N192: 3.903110559 | O192: 1990-07-10 | P192: 3.903110559 | Q192: 1990-07-31
A193: 19900710 | B193: 23 | C193: 260 | D193: 0 | E193: 24 | F193: 0 | G193: 1990 | H193: 7 | I193: 10 | J193: 2.4 | K193: 10 | L193: 80 | M193: 1.345900193 | N193: 3.230160462 | O193: 1990-07-10 | P193: 3.230160462 | Q193: 1990-07-31
A194: 19900710 | B194: 24 | C194: 260 | D194: 0 | E194: 24 | F194: 0 | G194: 1990 | H194: 7 | I194: 10 | J194: 2.4 | K194: 10 | L194: 80 | M194: 1.345900193 | N194: 3.230160462 | O194: 1990-07-10 | P194: 3.230160462 | Q194: 1990-07-31
A195: 19900711 | B195: 1 | C195: 240 | D195: 0 | E195: 17 | F195: 0 | G195: 1990 | H195: 7 | I195: 11 | J195: 1.7 | K195: 10 | L195: 80 | M195: 1.345900193 | N195: 2.288030327 | O195: 1990-07-11 | P195: 2.288030327 | Q195: 1990-07-31
A196: 19900711 | B196: 2 | C196: 240 | D196: 0 | E196: 17 | F196: 0 | G196: 1990 | H196: 7 | I196: 11 | J196: 1.7 | K196: 10 | L196: 80 | M196: 1.345900193 | N196: 2.288030327 | O196: 1990-07-11 | P196: 2.288030327 | Q196: 1990-07-31
A197: 19900711 | B197: 3 | C197: 230 | D197: 0 | E197: 17 | F197: 0 | G197: 1990 | H197: 7 | I197: 11 | J197: 1.7 | K197: 10 | L197: 80 | M197: 1.345900193 | N197: 2.288030327 | O197: 1990-07-11 | P197: 2.288030327 | Q197: 1990-07-31
A198: 19900711 | B198: 4 | C198: 230 | D198: 0 | E198: 24 | F198: 0 | G198: 1990 | H198: 7 | I198: 11 | J198: 2.4 | K198: 10 | L198: 80 | M198: 1.345900193 | N198: 3.230160462 | O198: 1990-07-11 | P198: 3.230160462 | Q198: 1990-07-31
A199: 19900711 | B199: 5 | C199: 220 | D199: 0 | E199: 17 | F199: 0 | G199: 1990 | H199: 7 | I199: 11 | J199: 1.7 | K199: 10 | L199: 80 | M199: 1.345900193 | N199: 2.288030327 | O199: 1990-07-11 | P199: 2.288030327 | Q199: 1990-07-31
A200: 19900711 | B200: 6 | C200: 220 | D200: 0 | E200: 24 | F200: 0 | G200: 1990 | H200: 7 | I200: 11 | J200: 2.4 | K200: 10 | L200: 80 | M200: 1.345900193 | N200: 3.230160462 | O200: 1990-07-11 | P200: 3.230160462 | Q200: 1990-07-31
A201: 19900711 | B201: 7 | C201: 220 | D201: 0 | E201: 29 | F201: 0 | G201: 1990 | H201: 7 | I201: 11 | J201: 2.9 | K201: 10 | L201: 80 | M201: 1.345900193 | N201: 3.903110559 | O201: 1990-07-11 | P201: 3.903110559 | Q201: 1990-07-31
A202: 19900711 | B202: 8 | C202: 220 | D202: 0 | E202: 35 | F202: 0 | G202: 1990 | H202: 7 | I202: 11 | J202: 3.5 | K202: 10 | L202: 80 | M202: 1.345900193 | N202: 4.710650674 | O202: 1990-07-11 | P202: 4.710650674 | Q202: 1990-07-31
A203: 19900711 | B203: 9 | C203: 230 | D203: 0 | E203: 40 | F203: 0 | G203: 1990 | H203: 7 | I203: 11 | J203: 4 | K203: 10 | L203: 80 | M203: 1.345900193 | N203: 5.383600771 | O203: 1990-07-11 | P203: 5.383600771 | Q203: 1990-07-31
A204: 19900711 | B204: 10 | C204: 230 | D204: 0 | E204: 46 | F204: 0 | G204: 1990 | H204: 7 | I204: 11 | J204: 4.6 | K204: 10 | L204: 80 | M204: 1.345900193 | N204: 6.191140886 | O204: 1990-07-11 | P204: 6.191140886 | Q204: 1990-07-31
A205: 19900711 | B205: 11 | C205: 250 | D205: 0 | E205: 52 | F205: 0 | G205: 1990 | H205: 7 | I205: 11 | J205: 5.2 | K205: 10 | L205: 80 | M205: 1.345900193 | N205: 6.998681002 | O205: 1990-07-11 | P205: 6.998681002 | Q205: 1990-07-31
A206: 19900711 | B206: 12 | C206: 250 | D206: 0 | E206: 52 | F206: 0 | G206: 1990 | H206: 7 | I206: 11 | J206: 5.2 | K206: 10 | L206: 80 | M206: 1.345900193 | N206: 6.998681002 | O206: 1990-07-11 | P206: 6.998681002 | Q206: 1990-07-31
... 4294 more rows

Sheet 1990
A1: POTENTIAL WIND STATION 391 ARCEN
A2: MOST RECENT COORDINATES X : 211100; Y : 390150
A3: MEASURED AT 10.0 METER HEIGHT
A5: POTENTIAL WIND MEANS: CORRECTED TO THE WIND SPEED AT 10 M HEIGHT OVER
A6: OPEN LAND WITH ROUGHNESS LENGTH 0.03 METER
A8: CONSULT THE REPORTS AT THE SITE: http://www.knmi.nl/samenw/hydra
A9: FOR BACKGROUND INFORMATION
A10: THESE DATA CAN BE USED FREELY PROVIDED THAT THE FOLLOWING SOURCE IS ACKNOWLEDGED:
A11: ROYAL NETHERLANDS METEOROLOGICAL INSTITUTE
A12: KONINKLIJK NEDERLANDS METEOROLOGISCH INSTITUUT
A14: VERSION FEBRUARY 01, 2007
A16: TIME IN GMT
A17: DD = WIND DIRECTION IN DEGREES NORTH
A18: QQD = QUALITY CODE DD
A19: UP = POTENTIAL WIND SPEED IN 0.1 M/S
A20: QUP = QUALITY CODE UP
A22: DATE,TIME, DD,QDD, UP,QUP
A23: 19900704,01, 0, 0, 6, 0
A24: 19900704,02,190, 0, 11, 0
A25: 19900704,03,160, 0, 11, 0
A26: 19900704,04,170, 0, 11, 0
A27: 19900704,05,160, 0, 17, 0
A28: 19900704,06,180, 0, 23, 0
A29: 19900704,07,190, 0, 30, 0
A30: 19900704,08,200, 0, 35, 0
A31: 19900704,09,190, 0, 47, 0
A32: 19900704,10,190, 0, 52, 0
A33: 19900704,11,200, 0, 52, 0
A34: 19900704,12,190, 0, 52, 0
A35: 19900704,13,190, 0, 58, 0
A36: 19900704,14,210, 0, 57, 0
A37: 19900704,15,210, 0, 46, 0
A38: 19900704,16,200, 0, 58, 0
A39: 19900704,17,200, 0, 65, 0
A40: 19900704,18,190, 0, 52, 0
A41: 19900704,19,190, 0, 58, 0
A42: 19900704,20,180, 0, 51, 0
A43: 19900704,21,200, 0, 52, 0
A44: 19900704,22,210, 0, 81, 0
A45: 19900704,23,210, 0, 70, 0
A46: 19900704,24,200, 0, 76, 0
A47: 19900705,01,200, 0, 65, 0
A48: 19900705,02,190, 0, 52, 0
A49: 19900705,03,190, 0, 52, 0
A50: 19900705,04,190, 0, 58, 0
A51: 19900705,05,180, 0, 51, 0
A52: 19900705,06,180, 0, 57, 0
A53: 19900705,07,200, 0, 58, 0
A54: 19900705,08,190, 0, 52, 0
A55: 19900705,09,210, 0, 57, 0
A56: 19900705,10,250, 0, 52, 0
A57: 19900705,11,240, 0, 75, 0
A58: 19900705,12,230, 0, 86, 0
A59: 19900705,13,230, 0, 75, 0
A60: 19900705,14,250, 0, 92, 0
A61: 19900705,15,230, 0, 81, 0
A62: 19900705,16,230, 0, 70, 0
A63: 19900705,17,230, 0, 86, 0
A64: 19900705,18,230, 0, 81, 0
A65: 19900705,19,280, 0, 75, 0
A66: 19900705,20,270, 0, 57, 0
A67: 19900705,21,280, 0, 46, 0
A68: 19900705,22,240, 0, 40, 0
A69: 19900705,23,240, 0, 52, 0
A70: 19900705,24,230, 0, 52, 0
A71: 19900706,01,280, 0, 52, 0
A72: 19900706,02,240, 0, 52, 0
A73: 19900706,03,240, 0, 46, 0
A74: 19900706,04,250, 0, 52, 0
A75: 19900706,05,250, 0, 52, 0
A76: 19900706,06,240, 0, 52, 0
A77: 19900706,07,250, 0, 70, 0
A78: 19900706,08,250, 0, 64, 0
A79: 19900706,09,260, 0, 57, 0
A80: 19900706,10,290, 0, 68, 0
A81: 19900706,11,250, 0, 64, 0
A82: 19900706,12,250, 0, 75, 0
A83: 19900706,13,330, 0, 49, 0
A84: 19900706,14,280, 0, 57, 0
A85: 19900706,15,280, 0, 75, 0
A86: 19900706,16,290, 0, 73, 0
A87: 19900706,17,290, 0, 73, 0
A88: 19900706,18,290, 0, 55, 0
A89: 19900706,19,290, 0, 49, 0
A90: 19900706,20,240, 0, 24, 0
A91: 19900706,21,210, 0, 29, 0
A92: 19900706,22,220, 0, 29, 0
A93: 19900706,23,210, 0, 29, 0
A94: 19900706,24,210, 0, 29, 0
A95: 19900707,01,220, 0, 29, 0
A96: 19900707,02,210, 0, 29, 0
A97: 19900707,03,210, 0, 29, 0
A98: 19900707,04,210, 0, 35, 0
A99: 19900707,05,210, 0, 35, 0
A100: 19900707,06,210, 0, 46, 0
A101: 19900707,07,210, 0, 46, 0
A102: 19900707,08,220, 0, 46, 0
A103: 19900707,09,210, 0, 57, 0
A104: 19900707,10,220, 0, 57, 0
A105: 19900707,11,210, 0, 57, 0
A106: 19900707,12,210, 0, 57, 0
A107: 19900707,13,190, 0, 47, 0
A108: 19900707,14,190, 0, 47, 0
A109: 19900707,15,190, 0, 47, 0
A110: 19900707,16,200, 0, 47, 0
A111: 19900707,17,210, 0, 46, 0
A112: 19900707,18,210, 0, 46, 0
A113: 19900707,19,210, 0, 41, 0
A114: 19900707,20,220, 0, 35, 0
A115: 19900707,21,220, 0, 41, 0
A116: 19900707,22,220, 0, 41, 0
A117: 19900707,23,220, 0, 41, 0
A118: 19900707,24,220, 0, 41, 0
A119: 19900708,01,220, 0, 46, 0
A120: 19900708,02,220, 0, 41, 0
A121: 19900708,03,230, 0, 46, 0
A122: 19900708,04,240, 0, 46, 0
A123: 19900708,05,220, 0, 46, 0
A124: 19900708,06,230, 0, 46, 0
A125: 19900708,07,230, 0, 52, 0
A126: 19900708,08,250, 0, 57, 0
A127: 19900708,09,240, 0, 46, 0
A128: 19900708,10,250, 0, 57, 0
A129: 19900708,11,250, 0, 57, 0
A130: 19900708,12,250, 0, 70, 0
A131: 19900708,13,230, 0, 70, 0
A132: 19900708,14,240, 0, 52, 0
A133: 19900708,15,260, 0, 46, 0
A134: 19900708,16,230, 0, 35, 0
A135: 19900708,17,240, 0, 46, 0
A136: 19900708,18,250, 0, 57, 0
A137: 19900708,19,230, 0, 70, 0
A138: 19900708,20,240, 0, 70, 0
A139: 19900708,21,240, 0, 52, 0
A140: 19900708,22,240, 0, 52, 0
A141: 19900708,23,250, 0, 57, 0
A142: 19900708,24,240, 0, 64, 0
A143: 19900709,01,250, 0, 57, 0
A144: 19900709,02,260, 0, 52, 0
A145: 19900709,03,270, 0, 70, 0
A146: 19900709,04,260, 0, 52, 0
A147: 19900709,05,250, 0, 52, 0
A148: 19900709,06,240, 0, 52, 0
A149: 19900709,07,240, 0, 52, 0
A150: 19900709,08,260, 0, 64, 0
A151: 19900709,09,260, 0, 70, 0
A152: 19900709,10,260, 0, 64, 0
A153: 19900709,11,270, 0, 70, 0
A154: 19900709,12,260, 0, 70, 0
A155: 19900709,13,260, 0, 64, 0
A156: 19900709,14,260, 0, 64, 0
A157: 19900709,15,250, 0, 57, 0
A158: 19900709,16,270, 0, 64, 0
A159: 19900709,17,280, 0, 57, 0
A160: 19900709,18,240, 0, 40, 0
A161: 19900709,19,240, 0, 40, 0
A162: 19900709,20,230, 0, 40, 0
A163: 19900709,21,220, 0, 41, 0
A164: 19900709,22,230, 0, 40, 0
A165: 19900709,23,230, 0, 52, 0
A166: 19900709,24,230, 0, 52, 0
A167: 19900710,01,240, 0, 46, 0
A168: 19900710,02,240, 0, 52, 0
A169: 19900710,03,250, 0, 52, 0
A170: 19900710,04,250, 0, 46, 0
A171: 19900710,05,250, 0, 52, 0
A172: 19900710,06,270, 0, 57, 0
A173: 19900710,07,270, 0, 57, 0
A174: 19900710,08,260, 0, 57, 0
A175: 19900710,09,260, 0, 64, 0
A176: 19900710,10,280, 0, 64, 0
A177: 19900710,11,290, 0, 60, 0
A178: 19900710,12,290, 0, 73, 0
A179: 19900710,13,300, 0, 68, 0
A180: 19900710,14,290, 0, 73, 0
A181: 19900710,15,300, 0, 60, 0
A182: 19900710,16,310, 0, 49, 0
A183: 19900710,17,310, 0, 61, 0
A184: 19900710,18,310, 0, 55, 0
A185: 19900710,19,310, 0, 49, 0
A186: 19900710,20,290, 0, 31, 0
A187: 19900710,21,290, 0, 31, 0
A188: 19900710,22,280, 0, 29, 0
A189: 19900710,23,260, 0, 24, 0
A190: 19900710,24,260, 0, 24, 0
A191: 19900711,01,240, 0, 17, 0
A192: 19900711,02,240, 0, 17, 0
A193: 19900711,03,230, 0, 17, 0
A194: 19900711,04,230, 0, 24, 0
A195: 19900711,05,220, 0, 17, 0
A196: 19900711,06,220, 0, 24, 0
A197: 19900711,07,220, 0, 29, 0
A198: 19900711,08,220, 0, 35, 0
A199: 19900711,09,230, 0, 40, 0
A200: 19900711,10,230, 0, 46, 0
A201: 19900711,11,250, 0, 52, 0
A202: 19900711,12,250, 0, 52, 0
A203: 19900711,13,250, 0, 52, 0
A204: 19900711,14,280, 0, 46, 0
A205: 19900711,15,270, 0, 46, 0
... 91833 more rows

Sheet 1991 to 2000
A1: POTENTIAL WIND STATION 240 SCHIPHOL
A2: MOST RECENT COORDINATES X : 113160; Y : 479330
A3: MEASURED AT 10.0 METER HEIGHT
A5: POTENTIAL WIND MEANS: CORRECTED TO THE WIND SPEED AT 10 M HEIGHT OVER
A6: OPEN LAND WITH ROUGHNESS LENGTH 0.03 METER
A8: CONSULT THE REPORTS AT THE SITE: http://www.knmi.nl/samenw/hydra
A9: FOR BACKGROUND INFORMATION
A10: THESE DATA CAN BE USED FREELY PROVIDED THAT THE FOLLOWING SOURCE IS ACKNOWLEDGED:
A11: ROYAL NETHERLANDS METEOROLOGICAL INSTITUTE
A12: KONINKLIJK NEDERLANDS METEOROLOGISCH INSTITUUT
A14: VERSION FEBRUARY 01, 2007
A16: TIME IN GMT
A17: DD = WIND DIRECTION IN DEGREES NORTH
A18: QQD = QUALITY CODE DD
A19: UP = POTENTIAL WIND SPEED IN 0.1 M/S
A20: QUP = QUALITY CODE UP
A22: DATE,TIME, DD,QDD, UP,QUP
A23: 19910101,01,260, 0, 58, 0
A24: 19910101,02,260, 0, 63, 0
A25: 19910101,03,260, 0, 68, 0
A26: 19910101,04,270, 0, 69, 0
A27: 19910101,05,260, 0, 63, 0
A28: 19910101,06,260, 0, 63, 0
A29: 19910101,07,250, 0, 58, 0
A30: 19910101,08,250, 0, 47, 0
A31: 19910101,09,250, 0, 47, 0
A32: 19910101,10,220, 0, 41, 0
A33: 19910101,11,240, 0, 63, 0
A34: 19910101,12,240, 0, 79, 0
A35: 19910101,13,230, 0, 79, 0
A36: 19910101,14,210, 0, 72, 0
A37: 19910101,15,200, 0, 66, 0
A38: 19910101,16,190, 0, 71, 0
A39: 19910101,17,190, 0, 71, 0
A40: 19910101,18,200, 0, 86, 0
A41: 19910101,19,190, 0, 86, 0
A42: 19910101,20,190, 0,102, 0
A43: 19910101,21,200, 0,111, 0
A44: 19910101,22,190, 0,121, 0
A45: 19910101,23,190, 0,137, 0
A46: 19910101,24,190, 0,152, 0
A47: 19910102,01,190, 0,147, 0
A48: 19910102,02,200, 0,157, 0
A49: 19910102,03,210, 0,149, 0
A50: 19910102,04,210, 0,139, 0
A51: 19910102,05,220, 0,134, 0
A52: 19910102,06,220, 0,139, 0
A53: 19910102,07,230, 0,142, 0
A54: 19910102,08,230, 0,142, 0
A55: 19910102,09,230, 0,132, 0
A56: 19910102,10,230, 0,121, 0
A57: 19910102,11,230, 0,121, 0
A58: 19910102,12,230, 0,137, 0
A59: 19910102,13,230, 0,132, 0
A60: 19910102,14,240, 0,137, 0
A61: 19910102,15,240, 0,142, 0
A62: 19910102,16,240, 0,121, 0
A63: 19910102,17,240, 0,158, 0
A64: 19910102,18,240, 0,169, 0
A65: 19910102,19,240, 0,153, 0
A66: 19910102,20,240, 0,142, 0
A67: 19910102,21,250, 0,125, 0
A68: 19910102,22,250, 0,110, 0
A69: 19910102,23,250, 0,105, 0
A70: 19910102,24,250, 0,100, 0
A71: 19910103,01,250, 0,100, 0
A72: 19910103,02,250, 0, 95, 0
A73: 19910103,03,250, 0, 89, 0
A74: 19910103,04,240, 0, 84, 0
A75: 19910103,05,250, 0, 83, 0
A76: 19910103,06,250, 0, 78, 0
A77: 19910103,07,250, 0, 68, 0
A78: 19910103,08,230, 0, 63, 0
A79: 19910103,09,230, 0, 63, 0
A80: 19910103,10,220, 0, 72, 0
A81: 19910103,11,210, 0, 67, 0
A82: 19910103,12,230, 0, 69, 0
A83: 19910103,13,240, 0, 89, 0
A84: 19910103,14,230, 0, 74, 0
A85: 19910103,15,210, 0, 57, 0
A86: 19910103,16,200, 0, 45, 0
A87: 19910103,17,180, 0, 45, 0
A88: 19910103,18,170, 0, 56, 0
A89: 19910103,19,190, 0, 71, 0
A90: 19910103,20,180, 0, 76, 0
A91: 19910103,21,180, 0, 81, 0
A92: 19910103,22,210, 0, 82, 0
A93: 19910103,23,240, 0,100, 0
A94: 19910103,24,260, 0,110, 0
A95: 19910104,01,260, 0, 78, 0
A96: 19910104,02,240, 0, 63, 0
A97: 19910104,03,230, 0, 58, 0
A98: 19910104,04,230, 0, 58, 0
A99: 19910104,05,220, 0, 57, 0
A100: 19910104,06,200, 0, 50, 0
A101: 19910104,07,210, 0, 67, 0
A102: 19910104,08,210, 0, 67, 0
A103: 19910104,09,210, 0, 57, 0
A104: 19910104,10,230, 0, 69, 0
A105: 19910104,11,210, 0, 77, 0
A106: 19910104,12,220, 0, 87, 0
A107: 19910104,13,220, 0, 93, 0
A108: 19910104,14,210, 0, 87, 0
A109: 19910104,15,210, 0, 98, 0
A110: 19910104,16,220, 0, 98, 0
A111: 19910104,17,220, 0, 93, 0
A112: 19910104,18,220, 0, 72, 0
A113: 19910104,19,230, 0, 63, 0
A114: 19910104,20,240, 0, 74, 0
A115: 19910104,21,240, 0, 89, 0
A116: 19910104,22,240, 0, 74, 0
A117: 19910104,23,210, 0, 67, 0
A118: 19910104,24,230, 0, 69, 0
A119: 19910105,01,210, 0, 77, 0
A120: 19910105,02,210, 0, 77, 0
A121: 19910105,03,210, 0, 87, 0
A122: 19910105,04,210, 0, 93, 0
A123: 19910105,05,210, 0, 87, 0
A124: 19910105,06,190, 0, 86, 0
A125: 19910105,07,190, 0, 97, 0
A126: 19910105,08,180, 0,102, 0
A127: 19910105,09,180, 0,112, 0
A128: 19910105,10,190, 0,127, 0
A129: 19910105,11,180, 0,132, 0
A130: 19910105,12,190, 0,147, 0
A131: 19910105,13,200, 0,152, 0
A132: 19910105,14,210, 0,144, 0
A133: 19910105,15,210, 0,118, 0
A134: 19910105,16,210, 0,108, 0
A135: 19910105,17,220, 0,113, 0
A136: 19910105,18,250, 0,125, 0
A137: 19910105,19,220, 0,103, 0
A138: 19910105,20,210, 0,108, 0
A139: 19910105,21,230, 0,126, 0
A140: 19910105,22,210, 0,103, 0
A141: 19910105,23,230, 0,116, 0
A142: 19910105,24,230, 0,137, 0
A143: 19910106,01,240, 0,153, 0
A144: 19910106,02,230, 0,169, 0
A145: 19910106,03,230, 0,158, 0
A146: 19910106,04,230, 0,169, 0
A147: 19910106,05,240, 0,169, 0
A148: 19910106,06,240, 0,174, 0
A149: 19910106,07,240, 0,179, 0
A150: 19910106,08,240, 0,179, 0
A151: 19910106,09,240, 0,163, 0
A152: 19910106,10,250, 0,162, 0
A153: 19910106,11,250, 0,162, 0
A154: 19910106,12,250, 0,168, 0
A155: 19910106,13,250, 0,168, 0
A156: 19910106,14,250, 0,142, 0
A157: 19910106,15,250, 0,136, 0
A158: 19910106,16,250, 0,115, 0
A159: 19910106,17,240, 0, 95, 0
A160: 19910106,18,250, 0, 95, 0
A161: 19910106,19,250, 0, 83, 0
A162: 19910106,20,220, 0, 87, 0
A163: 19910106,21,200, 0, 56, 0
A164: 19910106,22,200, 0, 81, 0
A165: 19910106,23,210, 0, 93, 0
A166: 19910106,24,210, 0, 98, 0
A167: 19910107,01,220, 0, 87, 0
A168: 19910107,02,210, 0, 67, 0
A169: 19910107,03,210, 0, 72, 0
A170: 19910107,04,210, 0, 72, 0
A171: 19910107,05,210, 0, 62, 0
A172: 19910107,06,200, 0, 66, 0
A173: 19910107,07,200, 0, 71, 0
A174: 19910107,08,200, 0, 86, 0
A175: 19910107,09,200, 0, 92, 0
A176: 19910107,10,230, 0,100, 0
A177: 19910107,11,240, 0,116, 0
A178: 19910107,12,250, 0,110, 0
A179: 19910107,13,250, 0,105, 0
A180: 19910107,14,260, 0,100, 0
A181: 19910107,15,250, 0,100, 0
A182: 19910107,16,250, 0,100, 0
A183: 19910107,17,230, 0, 79, 0
A184: 19910107,18,200, 0, 61, 0
A185: 19910107,19,210, 0, 77, 0
A186: 19910107,20,200, 0, 97, 0
A187: 19910107,21,210, 0,108, 0
A188: 19910107,22,210, 0,113, 0
A189: 19910107,23,220, 0,113, 0
A190: 19910107,24,230, 0,105, 0
A191: 19910108,01,210, 0,103, 0
A192: 19910108,02,210, 0, 77, 0
A193: 19910108,03,210, 0, 82, 0
A194: 19910108,04,220, 0, 87, 0
A195: 19910108,05,200, 0, 76, 0
A196: 19910108,06,240, 0, 58, 0
A197: 19910108,07,210, 0, 77, 0
A198: 19910108,08,210, 0, 62, 0
A199: 19910108,09,210, 0, 67, 0
A200: 19910108,10,200, 0, 76, 0
A201: 19910108,11,210, 0, 87, 0
A202: 19910108,12,210, 0, 87, 0
A203: 19910108,13,210, 0, 87, 0
A204: 19910108,14,210, 0, 93, 0
A205: 19910108,15,190, 0, 97, 0
... 87489 more rows

Sheet 2001 to 2010
A1: POTENTIAL WIND STATION 391 ARCEN
A2: MOST RECENT COORDINATES X : 211100; Y : 390150
A3: MEASURED AT 10.0 METER HEIGHT
A5: POTENTIAL WIND MEANS: CORRECTED TO THE WIND SPEED AT 10 M HEIGHT OVER
A6: OPEN LAND WITH ROUGHNESS LENGTH 0.03 METER
A8: CONSULT THE REPORTS AT THE SITE: http://www.knmi.nl/samenw/hydra
A9: FOR BACKGROUND INFORMATION
A10: THESE DATA CAN BE USED FREELY PROVIDED THAT THE FOLLOWING SOURCE IS ACKNOWLEDGED:
A11: ROYAL NETHERLANDS METEOROLOGICAL INSTITUTE
A12: KONINKLIJK NEDERLANDS METEOROLOGISCH INSTITUUT
A14: VERSION AUGUST 05, 2012
A16: TIME IN GMT
A17: DD = WIND DIRECTION IN DEGREES NORTH
A18: QQD = QUALITY CODE DD
A19: UP = POTENTIAL WIND SPEED IN 0.1 M/S
A20: QUP = QUALITY CODE UP
A22: DATE,TIME, DD,QDD, UP,QUP
A23: 20010101,01,140, 0, 69, 0
A24: 20010101,02,140, 0, 81, 0
A25: 20010101,03,140, 0, 81, 0
A26: 20010101,04,140, 0, 81, 0
A27: 20010101,05,150, 0, 71, 0
A28: 20010101,06,150, 0, 83, 0
A29: 20010101,07,140, 0, 81, 0
A30: 20010101,08,150, 0, 83, 0
A31: 20010101,09,150, 0, 83, 0
A32: 20010101,10,150, 0, 71, 0
A33: 20010101,11,150, 0, 71, 0
A34: 20010101,12,160, 0, 71, 0
A35: 20010101,13,150, 0, 71, 0
A36: 20010101,14,160, 0, 59, 0
A37: 20010101,15,160, 0, 59, 0
A38: 20010101,16,150, 0, 47, 0
A39: 20010101,17,150, 0, 35, 0
A40: 20010101,18,130, 0, 35, 0
A41: 20010101,19,140, 0, 35, 0
A42: 20010101,20,160, 0, 35, 0
A43: 20010101,21,170, 0, 47, 0
A44: 20010101,22,170, 0, 47, 0
A45: 20010101,23,140, 0, 35, 0
A46: 20010101,24,160, 0, 47, 0
A47: 20010102,01,170, 0, 35, 0
A48: 20010102,02,160, 0, 47, 0
A49: 20010102,03,150, 0, 47, 0
A50: 20010102,04,140, 0, 46, 0
A51: 20010102,05,140, 0, 46, 0
A52: 20010102,06,150, 0, 47, 0
A53: 20010102,07,150, 0, 35, 0
A54: 20010102,08,130, 0, 35, 0
A55: 20010102,09,150, 0, 47, 0
A56: 20010102,10,150, 0, 47, 0
A57: 20010102,11,160, 0, 47, 0
A58: 20010102,12,190, 0, 60, 0
A59: 20010102,13,200, 0, 72, 0
A60: 20010102,14,200, 0, 84, 0
A61: 20010102,15,190, 0, 72, 0
A62: 20010102,16,190, 0, 60, 0
A63: 20010102,17,190, 0, 72, 0
A64: 20010102,18,190, 0, 72, 0
A65: 20010102,19,190, 0, 72, 0
A66: 20010102,20,200, 0, 72, 0
A67: 20010102,21,200, 0, 72, 0
A68: 20010102,22,210, 0, 71, 0
A69: 20010102,23,200, 0, 60, 0
A70: 20010102,24,200, 0, 60, 0
A71: 20010103,01,190, 0, 72, 0
A72: 20010103,02,200, 0, 72, 0
A73: 20010103,03,200, 0, 60, 0
A74: 20010103,04,200, 0, 72, 0
A75: 20010103,05,200, 0, 72, 0
A76: 20010103,06,220, 0, 60, 0
A77: 20010103,07,230, 0, 59, 0
A78: 20010103,08,230, 0, 59, 0
A79: 20010103,09,240, 0, 59, 0
A80: 20010103,10,240, 0, 59, 0
A81: 20010103,11,230, 0, 59, 0
A82: 20010103,12,230, 0, 71, 0
A83: 20010103,13,230, 0, 59, 0
A84: 20010103,14,230, 0, 59, 0
A85: 20010103,15,210, 0, 36, 0
A86: 20010103,16,210, 0, 48, 0
A87: 20010103,17,180, 0, 35, 0
A88: 20010103,18,160, 0, 35, 0
A89: 20010103,19,150, 0, 35, 0
A90: 20010103,20,160, 0, 35, 0
A91: 20010103,21,160, 0, 47, 0
A92: 20010103,22,150, 0, 47, 0
A93: 20010103,23,150, 0, 47, 0
A94: 20010103,24,140, 0, 46, 0
A95: 20010104,01,140, 0, 58, 0
A96: 20010104,02,150, 0, 59, 0
A97: 20010104,03,150, 0, 47, 0
A98: 20010104,04,140, 0, 58, 0
A99: 20010104,05,140, 0, 46, 0
A100: 20010104,06,140, 0, 46, 0
A101: 20010104,07,150, 0, 47, 0
A102: 20010104,08,150, 0, 35, 0
A103: 20010104,09,140, 0, 35, 0
A104: 20010104,10,140, 0, 35, 0
A105: 20010104,11,140, 0, 46, 0
A106: 20010104,12,150, 0, 47, 0
A107: 20010104,13,160, 0, 59, 0
A108: 20010104,14,150, 0, 47, 0
A109: 20010104,15,150, 0, 47, 0
A110: 20010104,16,220, 0, 60, 0
A111: 20010104,17,220, 0, 83, 0
A112: 20010104,18,210, 0, 83, 0
A113: 20010104,19,210, 0, 83, 0
A114: 20010104,20,210, 0, 71, 0
A115: 20010104,21,220, 0, 71, 0
A116: 20010104,22,210, 0, 71, 0
A117: 20010104,23,200, 0, 60, 0
A118: 20010104,24,200, 0, 72, 0
A119: 20010105,01,200, 0, 60, 0
A120: 20010105,02,180, 0, 59, 0
A121: 20010105,03,160, 0, 47, 0
A122: 20010105,04,160, 0, 47, 0
A123: 20010105,05,150, 0, 47, 0
A124: 20010105,06,140, 0, 46, 0
A125: 20010105,07,140, 0, 46, 0
A126: 20010105,08,140, 0, 58, 0
A127: 20010105,09,150, 0, 59, 0
A128: 20010105,10,150, 0, 71, 0
A129: 20010105,11,150, 0, 59, 0
A130: 20010105,12,170, 0, 59, 0
A131: 20010105,13,200, 0, 84, 0
A132: 20010105,14,210, 0, 95, 0
A133: 20010105,15,210, 0, 95, 0
A134: 20010105,16,220, 0, 83, 0
A135: 20010105,17,250, 0, 71, 0
A136: 20010105,18,240, 0, 71, 0
A137: 20010105,19,230, 0, 47, 0
A138: 20010105,20,210, 0, 36, 0
A139: 20010105,21,190, 0, 24, 0
A140: 20010105,22,180, 0, 23, 0
A141: 20010105,23,290, 0, 13, 0
A142: 20010105,24, 0, 0, 12, 0
A143: 20010106,01, 0, 0, 12, 0
A144: 20010106,02,290, 0, 25, 0
A145: 20010106,03,260, 0, 35, 0
A146: 20010106,04,250, 0, 47, 0
A147: 20010106,05,240, 0, 47, 0
A148: 20010106,06,250, 0, 47, 0
A149: 20010106,07,240, 0, 47, 0
A150: 20010106,08,220, 0, 36, 0
A151: 20010106,09,210, 0, 36, 0
A152: 20010106,10,220, 0, 48, 0
A153: 20010106,11,230, 0, 59, 0
A154: 20010106,12,230, 0, 59, 0
A155: 20010106,13,220, 0, 60, 0
A156: 20010106,14,230, 0, 71, 0
A157: 20010106,15,230, 0, 47, 0
A158: 20010106,16,200, 0, 36, 0
A159: 20010106,17,200, 0, 36, 0
A160: 20010106,18,220, 0, 48, 0
A161: 20010106,19,200, 0, 36, 0
A162: 20010106,20,200, 0, 36, 0
A163: 20010106,21,210, 0, 36, 0
A164: 20010106,22,210, 0, 36, 0
A165: 20010106,23,190, 0, 36, 0
A166: 20010106,24,200, 0, 48, 0
A167: 20010107,01,190, 0, 36, 0
A168: 20010107,02,200, 0, 48, 0
A169: 20010107,03,200, 0, 48, 0
A170: 20010107,04,200, 0, 48, 0
A171: 20010107,05,190, 0, 48, 0
A172: 20010107,06,190, 0, 48, 0
A173: 20010107,07,190, 0, 48, 0
A174: 20010107,08,190, 0, 48, 0
A175: 20010107,09,190, 0, 60, 0
A176: 20010107,10,200, 0, 60, 0
A177: 20010107,11,200, 0, 60, 0
A178: 20010107,12,220, 0, 60, 0
A179: 20010107,13,220, 0, 60, 0
A180: 20010107,14,210, 0, 60, 0
A181: 20010107,15,220, 0, 60, 0
A182: 20010107,16,210, 0, 48, 0
A183: 20010107,17,220, 0, 48, 0
A184: 20010107,18,210, 0, 48, 0
A185: 20010107,19,220, 0, 48, 0
A186: 20010107,20,210, 0, 36, 0
A187: 20010107,21,210, 0, 24, 0
A188: 20010107,22,200, 0, 36, 0
A189: 20010107,23,220, 0, 36, 0
A190: 20010107,24,200, 0, 24, 0
A191: 20010108,01,200, 0, 24, 0
A192: 20010108,02,200, 0, 24, 0
A193: 20010108,03,210, 0, 36, 0
A194: 20010108,04,210, 0, 36, 0
A195: 20010108,05,210, 0, 36, 0
A196: 20010108,06,210, 0, 36, 0
A197: 20010108,07,200, 0, 36, 0
A198: 20010108,08,200, 0, 36, 0
A199: 20010108,09,210, 0, 48, 0
A200: 20010108,10,220, 0, 48, 0
A201: 20010108,11,220, 0, 60, 0
A202: 20010108,12,230, 0, 47, 0
A203: 20010108,13,230, 0, 47, 0
A204: 20010108,14,240, 0, 47, 0
A205: 20010108,15,230, 0, 47, 0
... 87465 more rows

Sheet 2011
A1: POTENTIAL WIND STATION 391 ARCEN
A2: MOST RECENT COORDINATES X : 211100; Y : 390150
A3: MEASURED AT 10.0 METER HEIGHT
A5: POTENTIAL WIND MEANS: CORRECTED TO THE WIND SPEED AT 10 M HEIGHT OVER
A6: OPEN LAND WITH ROUGHNESS LENGTH 0.03 METER
A8: CONSULT THE REPORTS AT THE SITE: http://www.knmi.nl/samenw/hydra
A9: FOR BACKGROUND INFORMATION
A10: THESE DATA CAN BE USED FREELY PROVIDED THAT THE FOLLOWING SOURCE IS ACKNOWLEDGED:
A11: ROYAL NETHERLANDS METEOROLOGICAL INSTITUTE
A12: KONINKLIJK NEDERLANDS METEOROLOGISCH INSTITUUT
A14: VERSION AUGUST 05, 2012
A16: TIME IN GMT
A17: DD = WIND DIRECTION IN DEGREES NORTH
A18: QQD = QUALITY CODE DD
A19: UP = POTENTIAL WIND SPEED IN 0.1 M/S
A20: QUP = QUALITY CODE UP
A22: DATE,TIME, DD,QDD, UP,QUP
A23: 20110101,01,220, 0, 24, 0
A24: 20110101,02,200, 0, 24, 0
A25: 20110101,03,230, 0, 24, 0
A26: 20110101,04,240, 0, 35, 0
A27: 20110101,05,260, 0, 35, 0
A28: 20110101,06,240, 0, 24, 0
A29: 20110101,07,240, 0, 35, 0
A30: 20110101,08,230, 0, 35, 0
A31: 20110101,09,240, 0, 35, 0
A32: 20110101,10,250, 0, 35, 0
A33: 20110101,11,250, 0, 35, 0
A34: 20110101,12,290, 0, 38, 0
A35: 20110101,13,260, 0, 24, 0
A36: 20110101,14,300, 0, 25, 0
A37: 20110101,15,290, 0, 25, 0
A38: 20110101,16,280, 0, 24, 0
A39: 20110101,17,310, 0, 14, 0
A40: 20110101,18,300, 0, 13, 0
A41: 20110101,19,300, 0, 13, 0
A42: 20110101,20,270, 0, 12, 0
A43: 20110101,21,290, 0, 13, 0
A44: 20110101,22,240, 0, 12, 0
A45: 20110101,23,300, 0, 13, 0
A46: 20110101,24,280, 0, 12, 0
A47: 20110102,01,300, 0, 13, 0
A48: 20110102,02,300, 0, 25, 0
A49: 20110102,03, 0, 0, 12, 0
A50: 20110102,04, 0, 0, 0, 0
A51: 20110102,05, 0, 0, 0, 0
A52: 20110102,06, 0, 0, 0, 0
A53: 20110102,07, 0, 0, 0, 0
A54: 20110102,08, 0, 0, 0, 0
A55: 20110102,09,280, 0, 12, 0
A56: 20110102,10,270, 0, 24, 0
A57: 20110102,11,260, 0, 24, 0
A58: 20110102,12,280, 0, 36, 0
A59: 20110102,13,260, 0, 35, 0
A60: 20110102,14,270, 0, 36, 0
A61: 20110102,15,270, 0, 36, 0
A62: 20110102,16,260, 0, 24, 0
A63: 20110102,17,270, 0, 24, 0
A64: 20110102,18,270, 0, 24, 0
A65: 20110102,19,250, 0, 24, 0
A66: 20110102,20,260, 0, 24, 0
A67: 20110102,21,280, 0, 24, 0
A68: 20110102,22,260, 0, 35, 0
A69: 20110102,23,260, 0, 24, 0
A70: 20110102,24,250, 0, 24, 0
A71: 20110103,01,260, 0, 24, 0
A72: 20110103,02,260, 0, 24, 0
A73: 20110103,03,260, 0, 24, 0
A74: 20110103,04,250, 0, 24, 0
A75: 20110103,05,190, 0, 12, 0
A76: 20110103,06,190, 0, 12, 0
A77: 20110103,07,200, 0, 12, 0
A78: 20110103,08,210, 0, 12, 0
A79: 20110103,09,230, 0, 12, 0
A80: 20110103,10,240, 0, 24, 0
A81: 20110103,11,220, 0, 24, 0
A82: 20110103,12,210, 0, 24, 0
A83: 20110103,13,200, 0, 24, 0
A84: 20110103,14,200, 0, 24, 0
A85: 20110103,15,190, 0, 24, 0
A86: 20110103,16,210, 0, 12, 0
A87: 20110103,17,180, 0, 23, 0
A88: 20110103,18,190, 0, 24, 0
A89: 20110103,19,190, 0, 24, 0
A90: 20110103,20,200, 0, 24, 0
A91: 20110103,21,200, 0, 24, 0
A92: 20110103,22,210, 0, 24, 0
A93: 20110103,23,220, 0, 24, 0
A94: 20110103,24,220, 0, 24, 0
A95: 20110104,01,220, 0, 24, 0
A96: 20110104,02,230, 0, 24, 0
A97: 20110104,03,230, 0, 24, 0
A98: 20110104,04,210, 0, 24, 0
A99: 20110104,05,210, 0, 24, 0
A100: 20110104,06,200, 0, 24, 0
A101: 20110104,07,210, 0, 36, 0
A102: 20110104,08,190, 0, 48, 0
A103: 20110104,09,200, 0, 48, 0
A104: 20110104,10,220, 0, 48, 0
A105: 20110104,11,200, 0, 48, 0
A106: 20110104,12,210, 0, 48, 0
A107: 20110104,13,200, 0, 60, 0
A108: 20110104,14,200, 0, 48, 0
A109: 20110104,15,190, 0, 60, 0
A110: 20110104,16,170, 0, 47, 0
A111: 20110104,17,170, 0, 35, 0
A112: 20110104,18,170, 0, 47, 0
A113: 20110104,19,170, 0, 47, 0
A114: 20110104,20,160, 0, 35, 0
A115: 20110104,21,160, 0, 35, 0
A116: 20110104,22,170, 0, 47, 0
A117: 20110104,23,160, 0, 47, 0
A118: 20110104,24,160, 0, 59, 0
A119: 20110105,01,160, 0, 47, 0
A120: 20110105,02,160, 0, 35, 0
A121: 20110105,03,160, 0, 59, 0
A122: 20110105,04,150, 0, 35, 0
A123: 20110105,05,150, 0, 35, 0
A124: 20110105,06,140, 0, 35, 0
A125: 20110105,07,150, 0, 35, 0
A126: 20110105,08,140, 0, 35, 0
A127: 20110105,09,150, 0, 35, 0
A128: 20110105,10,150, 0, 47, 0
A129: 20110105,11,150, 0, 59, 0
A130: 20110105,12,150, 0, 47, 0
A131: 20110105,13,150, 0, 47, 0
A132: 20110105,14,150, 0, 47, 0
A133: 20110105,15,140, 0, 46, 0
A134: 20110105,16,140, 0, 46, 0
A135: 20110105,17,140, 0, 58, 0
A136: 20110105,18,140, 0, 58, 0
A137: 20110105,19,160, 0, 59, 0
A138: 20110105,20,150, 0, 59, 0
A139: 20110105,21,160, 0, 47, 0
A140: 20110105,22,150, 0, 47, 0
A141: 20110105,23,150, 0, 47, 0
A142: 20110105,24,150, 0, 47, 0
A143: 20110106,01,150, 0, 47, 0
A144: 20110106,02,150, 0, 35, 0
A145: 20110106,03,150, 0, 35, 0
A146: 20110106,04,150, 0, 35, 0
A147: 20110106,05,160, 0, 35, 0
A148: 20110106,06,160, 0, 24, 0
A149: 20110106,07,200, 0, 24, 0
A150: 20110106,08,200, 0, 36, 0
A151: 20110106,09,190, 0, 36, 0
A152: 20110106,10,190, 0, 36, 0
A153: 20110106,11,180, 0, 47, 0
A154: 20110106,12,150, 0, 35, 0
A155: 20110106,13,160, 0, 35, 0
A156: 20110106,14,170, 0, 47, 0
A157: 20110106,15,190, 0, 60, 0
A158: 20110106,16,190, 0, 60, 0
A159: 20110106,17,190, 0, 60, 0
A160: 20110106,18,200, 0, 72, 0
A161: 20110106,19,200, 0, 72, 0
A162: 20110106,20,210, 0, 83, 0
A163: 20110106,21,270, 0, 84, 0
A164: 20110106,22,290, 0, 75, 0
A165: 20110106,23,300, 0, 50, 0
A166: 20110106,24,240, 0, 24, 0
A167: 20110107,01,270, 0, 24, 0
A168: 20110107,02, 0, 0, 12, 0
A169: 20110107,03,190, 0, 12, 0
A170: 20110107,04,110, 0, 11, 0
A171: 20110107,05,110, 0, 11, 0
A172: 20110107,06,100, 0, 11, 0
A173: 20110107,07,120, 0, 11, 0
A174: 20110107,08,100, 0, 33, 0
A175: 20110107,09, 80, 0, 22, 0
A176: 20110107,10, 80, 0, 33, 0
A177: 20110107,11,100, 0, 33, 0
A178: 20110107,12,120, 0, 22, 0
A179: 20110107,13,120, 0, 11, 0
A180: 20110107,14,100, 0, 11, 0
A181: 20110107,15,150, 0, 24, 0
A182: 20110107,16,160, 0, 35, 0
A183: 20110107,17,170, 0, 35, 0
A184: 20110107,18,180, 0, 47, 0
A185: 20110107,19,180, 0, 47, 0
A186: 20110107,20,180, 0, 47, 0
A187: 20110107,21,180, 0, 47, 0
A188: 20110107,22,160, 0, 35, 0
A189: 20110107,23,170, 0, 47, 0
A190: 20110107,24,170, 0, 47, 0
A191: 20110108,01,170, 0, 47, 0
A192: 20110108,02,160, 0, 35, 0
A193: 20110108,03,160, 0, 35, 0
A194: 20110108,04,170, 0, 35, 0
A195: 20110108,05,190, 0, 60, 0
A196: 20110108,06,170, 0, 82, 0
A197: 20110108,07,160, 0, 71, 0
A198: 20110108,08,170, 0, 82, 0
A199: 20110108,09,170, 0, 82, 0
A200: 20110108,10,200, 0, 84, 0
A201: 20110108,11,200, 0,108, 0
A202: 20110108,12,220, 0, 95, 0
A203: 20110108,13,210, 0,119, 0
A204: 20110108,14,220, 0,107, 0
A205: 20110108,15,220, 0, 95, 0
... 8577 more rows
